{"text_format":"2","workbook":"xlsx","n_sheets":4,"sheets":["菜单","缩略词","学校角色","审核角色"],"not_rendered":{"charts":0,"images":0,"macros":0,"external_links":0,"defined_names":1,"comments":0,"pivot_tables":0},"unopened":[],"bounds":{"document_bytes":16777216,"sheet_cells":100000,"run_cost":"one","rows_first":2000,"rows_last":500,"rows_between":2000,"halvings":0,"cell_chars":16384,"cell_head_chars":4096},"cells_cut":0,"cells_raw":0,"read":"whole","date_system":"1900"}

{"sheet":"菜单","index":0,"n_rows":172,"n_cols":22,"rows_kept":172,"cut":false,"hidden":false,"merged":[]}
["Id","Pid","Pids","Name","FullName","Code","Type",null,"Icon","Router","Component","Permission","OpenType",null,"Visible",null,"Sort","Status",null,"C# Code"]
[10000,0,{"$f":"\"[\"&B2&\"],\"","v":"[0],"},"工作台",{"$f":"D2","v":"工作台"},"wb","MenuType.MENU",null,"home",{"$f":"\"/\"&F2","v":"/wb"},null,null,"MenuOpenType.COMPONENT",null,"true",null,{"$f":"A2","v":10000},"CommonStatus.ENABLE",null,{"$f":"\"            new SysMenu { Id = \"&A2&\", Pid = \"&B2&\", Pids = \"\"\"&C2&\"\"\", Name = \"\"\"&D2&\"\"\", Code = \"\"\"&F2&\"\"\", MenuType = \"&G2&\", Icon = \"\"\"&I2&\"\"\", Router = \"\"\"&J2&\"\"\", Component = \"\"\"&K2&\"\"\", Permission = \"\"\"&L2&\"\"\", OpenType = \"&M2&\", Visible = \"&O2&\", Sort = \"&Q2&\", Status = \"&R2&\" },\"","v":"            new SysMenu { Id = 10000, Pid = 0, Pids = \"[0],\", Name = \"工作台\", Code = \"wb\", MenuType = MenuType.MENU, Icon = \"home\", Router = \"/wb\", Component = \"\", Permission = \"\", OpenType = MenuOpenType.COMPONENT, Visible = true, Sort = 10000, Status = CommonStatus.ENABLE },"},{"$f":"UPPER(SUBSTITUTE(SUBSTITUTE(L2,\"-\",\"_\"),\".\",\"_\"))","v":""}]
[]
[10100,0,{"$f":"\"[\"&B4&\"],\"","v":"[0],"},"基础资料",{"$f":"D4","v":"基础资料"},"base-s","MenuType.FOLDER",null,"apps",{"$f":"\"/\"&F4","v":"/base-s"},null,null,"MenuOpenType.NONE",null,"false",null,{"$f":"A4","v":10100},"CommonStatus.ENABLE",null,{"$f":"\"            new SysMenu { Id = \"&A4&\", Pid = \"&B4&\", Pids = \"\"\"&C4&\"\"\", Name = \"\"\"&D4&\"\"\", Code = \"\"\"&F4&\"\"\", MenuType = \"&G4&\", Icon = \"\"\"&I4&\"\"\", Router = \"\"\"&J4&\"\"\", Component = \"\"\"&K4&\"\"\", Permission = \"\"\"&L4&\"\"\", OpenType = \"&M4&\", Visible = \"&O4&\", Sort = \"&Q4&\", Status = \"&R4&\" },\"","v":"            new SysMenu { Id = 10100, Pid = 0, Pids = \"[0],\", Name = \"基础资料\", Code = \"base-s\", MenuType = MenuType.FOLDER, Icon = \"apps\", Router = \"/base-s\", Component = \"\", Permission = \"\", OpenType = MenuOpenType.NONE, Visible = false, Sort = 10100, Status = CommonStatus.ENABLE },"},""]
[10101,{"$f":"A$4","v":10100},{"$f":"C$4&\"[\"&B5&\"],\"","v":"[0],[10100],"},"班级信息",{"$f":"E$4&\"/\"&D5","v":"基础资料/班级信息"},"class","MenuType.MENU",null,null,{"$f":"J$4&\"/\"&F5","v":"/base-s/class"},null,null,"MenuOpenType.COMPONENT",null,"true",null,10,"CommonStatus.ENABLE",null,{"$f":"\"            new SysMenu { Id = \"&A5&\", Pid = \"&B5&\", Pids = \"\"\"&C5&\"\"\", Name = \"\"\"&D5&\"\"\", Code = \"\"\"&F5&\"\"\", MenuType = \"&G5&\", Icon = \"\"\"&I5&\"\"\", Router = \"\"\"&J5&\"\"\", Component = \"\"\"&K5&\"\"\", Permission = \"\"\"&L5&\"\"\", OpenType = \"&M5&\", Visible = \"&O5&\", Sort = \"&Q5&\", Status = \"&R5&\" },\"","v":"            new SysMenu { Id = 10101, Pid = 10100, Pids = \"[0],[10100],\", Name = \"班级信息\", Code = \"class\", MenuType = MenuType.MENU, Icon = \"\", Router = \"/base-s/class\", Component = \"\", Permission = \"\", OpenType = MenuOpenType.COMPONENT, Visible = true, Sort = 10, Status = CommonStatus.ENABLE },"},""]
[10102,{"$f":"A$5","v":10101},{"$f":"C$5&\"[\"&B6&\"],\"","v":"[0],[10100],[10101],"},"添加",{"$f":"E$5&\"/\"&D6","v":"基础资料/班级信息/添加"},"add","MenuType.BUTTON",{"$nulls":4},{"$f":"F$4&\".\"&F$5&\".\"&F6","v":"base-s.class.add"},"MenuOpenType.NONE",null,"true",null,0,"CommonStatus.ENABLE",null,"            new SysMenu { Id = 10102, Pid = 10101, Pids = \"[0],[10100],[10101],\", Name = \"添加\", Code = \"add\", MenuType = MenuType.BUTTON, Icon = \"\", Router = \"\", Component = \"\", Permission = \"base-s.class.add\", OpenType = MenuOpenType.NONE, Visible = true, Sort = 0, Status = CommonStatus.ENABLE },","BASE_S_CLASS_ADD"]
[10103,{"$f":"A$5","v":10101},{"$f":"C$5&\"[\"&B7&\"],\"","v":"[0],[10100],[10101],"},"修改",{"$f":"E$5&\"/\"&D7","v":"基础资料/班级信息/修改"},"edit","MenuType.BUTTON",{"$nulls":4},{"$f":"F$4&\".\"&F$5&\".\"&F7","v":"base-s.class.edit"},"MenuOpenType.NONE",null,"true",null,0,"CommonStatus.ENABLE",null,"            new SysMenu { Id = 10103, Pid = 10101, Pids = \"[0],[10100],[10101],\", Name = \"修改\", Code = \"edit\", MenuType = MenuType.BUTTON, Icon = \"\", Router = \"\", Component = \"\", Permission = \"base-s.class.edit\", OpenType = MenuOpenType.NONE, Visible = true, Sort = 0, Status = CommonStatus.ENABLE },","BASE_S_CLASS_EDIT"]
[10104,{"$f":"A$5","v":10101},{"$f":"C$5&\"[\"&B8&\"],\"","v":"[0],[10100],[10101],"},"删除",{"$f":"E$5&\"/\"&D8","v":"基础资料/班级信息/删除"},"del","MenuType.BUTTON",{"$nulls":4},{"$f":"F$4&\".\"&F$5&\".\"&F8","v":"base-s.class.del"},"MenuOpenType.NONE",null,"true",null,0,"CommonStatus.ENABLE",null,"            new SysMenu { Id = 10104, Pid = 10101, Pids = \"[0],[10100],[10101],\", Name = \"删除\", Code = \"del\", MenuType = MenuType.BUTTON, Icon = \"\", Router = \"\", Component = \"\", Permission = \"base-s.class.del\", OpenType = MenuOpenType.NONE, Visible = true, Sort = 0, Status = CommonStatus.ENABLE },",{"$f":"UPPER(SUBSTITUTE(SUBSTITUTE(L8,\"-\",\"_\"),\".\",\"_\"))","v":"BASE_S_CLASS_DEL"}]
[10105,{"$f":"A$4","v":10100},{"$f":"C$4&\"[\"&B9&\"],\"","v":"[0],[10100],"},"学生信息",{"$f":"E$4&\"/\"&D9","v":"基础资料/学生信息"},"student","MenuType.MENU",null,null,{"$f":"J$4&\"/\"&F9","v":"/base-s/student"},null,null,"MenuOpenType.COMPONENT",null,"true",null,20,"CommonStatus.ENABLE",null,"            new SysMenu { Id = 10105, Pid = 10100, Pids = \"[0],[10100],\", Name = \"学生信息\", Code = \"student\", MenuType = MenuType.MENU, Icon = \"\", Router = \"/base-s/student\", Component = \"\", Permission = \"\", OpenType = MenuOpenType.COMPONENT, Visible = true, Sort = 20, Status = CommonStatus.ENABLE },",""]
[10106,{"$f":"A$9","v":10105},{"$f":"C$9&\"[\"&B10&\"],\"","v":"[0],[10100],[10105],"},"添加",{"$f":"E$9&\"/\"&D10","v":"基础资料/学生信息/添加"},"add","MenuType.BUTTON",{"$nulls":4},{"$f":"F$4&\".\"&F$9&\".\"&F10","v":"base-s.student.add"},"MenuOpenType.NONE",null,"true",null,0,"CommonStatus.ENABLE",null,"            new SysMenu { Id = 10106, Pid = 10105, Pids = \"[0],[10100],[10105],\", Name = \"添加\", Code = \"add\", MenuType = MenuType.BUTTON, Icon = \"\", Router = \"\", Component = \"\", Permission = \"base-s.student.add\", OpenType = MenuOpenType.NONE, Visible = true, Sort = 0, Status = CommonStatus.ENABLE },","BASE_S_STUDENT_ADD"]
[10107,{"$f":"A$9","v":10105},{"$f":"C$9&\"[\"&B11&\"],\"","v":"[0],[10100],[10105],"},"修改",{"$f":"E$9&\"/\"&D11","v":"基础资料/学生信息/修改"},"edit","MenuType.BUTTON",{"$nulls":4},{"$f":"F$4&\".\"&F$9&\".\"&F11","v":"base-s.student.edit"},"MenuOpenType.NONE",null,"true",null,0,"CommonStatus.ENABLE",null,"            new SysMenu { Id = 10107, Pid = 10105, Pids = \"[0],[10100],[10105],\", Name = \"修改\", Code = \"edit\", MenuType = MenuType.BUTTON, Icon = \"\", Router = \"\", Component = \"\", Permission = \"base-s.student.edit\", OpenType = MenuOpenType.NONE, Visible = true, Sort = 0, Status = CommonStatus.ENABLE },","BASE_S_STUDENT_EDIT"]
[10108,{"$f":"A$9","v":10105},{"$f":"C$9&\"[\"&B12&\"],\"","v":"[0],[10100],[10105],"},"删除",{"$f":"E$9&\"/\"&D12","v":"基础资料/学生信息/删除"},"del","MenuType.BUTTON",{"$nulls":4},{"$f":"F$4&\".\"&F$9&\".\"&F12","v":"base-s.student.del"},"MenuOpenType.NONE",null,"true",null,0,"CommonStatus.ENABLE",null,"            new SysMenu { Id = 10108, Pid = 10105, Pids = \"[0],[10100],[10105],\", Name = \"删除\", Code = \"del\", MenuType = MenuType.BUTTON, Icon = \"\", Router = \"\", Component = \"\", Permission = \"base-s.student.del\", OpenType = MenuOpenType.NONE, Visible = true, Sort = 0, Status = CommonStatus.ENABLE },","BASE_S_STUDENT_DEL"]
[10109,{"$f":"A$4","v":10100},{"$f":"C$4&\"[\"&B13&\"],\"","v":"[0],[10100],"},"教师信息",{"$f":"E$4&\"/\"&D13","v":"基础资料/教师信息"},"teacher","MenuType.MENU",null,null,{"$f":"J$4&\"/\"&F13","v":"/base-s/teacher"},null,null,"MenuOpenType.COMPONENT",null,"true",null,30,"CommonStatus.ENABLE",null,"            new SysMenu { Id = 10109, Pid = 10100, Pids = \"[0],[10100],\", Name = \"教师信息\", Code = \"teacher\", MenuType = MenuType.MENU, Icon = \"\", Router = \"/base-s/teacher\", Component = \"\", Permission = \"\", OpenType = MenuOpenType.COMPONENT, Visible = true, Sort = 30, Status = CommonStatus.ENABLE },",""]
[10110,{"$f":"A$13","v":10109},{"$f":"C$13&\"[\"&B14&\"],\"","v":"[0],[10100],[10109],"},"添加",{"$f":"E$13&\"/\"&D14","v":"基础资料/教师信息/添加"},"add","MenuType.BUTTON",{"$nulls":4},{"$f":"F$4&\".\"&F$13&\".\"&F14","v":"base-s.teacher.add"},"MenuOpenType.NONE",null,"true",null,0,"CommonStatus.ENABLE",null,"            new SysMenu { Id = 10110, Pid = 10109, Pids = \"[0],[10100],[10109],\", Name = \"添加\", Code = \"add\", MenuType = MenuType.BUTTON, Icon = \"\", Router = \"\", Component = \"\", Permission = \"base-s.teacher.add\", OpenType = MenuOpenType.NONE, Visible = true, Sort = 0, Status = CommonStatus.ENABLE },","BASE_S_TEACHER_ADD"]
[10111,{"$f":"A$13","v":10109},{"$f":"C$13&\"[\"&B15&\"],\"","v":"[0],[10100],[10109],"},"修改",{"$f":"E$13&\"/\"&D15","v":"基础资料/教师信息/修改"},"edit","MenuType.BUTTON",{"$nulls":4},{"$f":"F$4&\".\"&F$13&\".\"&F15","v":"base-s.teacher.edit"},"MenuOpenType.NONE",null,"true",null,0,"CommonStatus.ENABLE",null,"            new SysMenu { Id = 10111, Pid = 10109, Pids = \"[0],[10100],[10109],\", Name = \"修改\", Code = \"edit\", MenuType = MenuType.BUTTON, Icon = \"\", Router = \"\", Component = \"\", Permission = \"base-s.teacher.edit\", OpenType = MenuOpenType.NONE, Visible = true, Sort = 0, Status = CommonStatus.ENABLE },","BASE_S_TEACHER_EDIT"]
[10112,{"$f":"A$13","v":10109},{"$f":"C$13&\"[\"&B16&\"],\"","v":"[0],[10100],[10109],"},"删除",{"$f":"E$13&\"/\"&D16","v":"基础资料/教师信息/删除"},"del","MenuType.BUTTON",{"$nulls":4},{"$f":"F$4&\".\"&F$13&\".\"&F16","v":"base-s.teacher.del"},"MenuOpenType.NONE",null,"true",null,0,"CommonStatus.ENABLE",null,"            new SysMenu { Id = 10112, Pid = 10109, Pids = \"[0],[10100],[10109],\", Name = \"删除\", Code = \"del\", MenuType = MenuType.BUTTON, Icon = \"\", Router = \"\", Component = \"\", Permission = \"base-s.teacher.del\", OpenType = MenuOpenType.NONE, Visible = true, Sort = 0, Status = CommonStatus.ENABLE },","BASE_S_TEACHER_DEL"]
[10113,{"$f":"A$4","v":10100},{"$f":"C$4&\"[\"&B17&\"],\"","v":"[0],[10100],"},"特殊学生管理",{"$f":"E$4&\"/\"&D17","v":"基础资料/特殊学生管理"},"sp-stu","MenuType.MENU",null,null,{"$f":"J$4&\"/\"&F17","v":"/base-s/sp-stu"},null,null,"MenuOpenType.COMPONENT",null,"true",null,40,"CommonStatus.ENABLE",null,"            new SysMenu { Id = 10113, Pid = 10100, Pids = \"[0],[10100],\", Name = \"特殊学生管理\", Code = \"sp-stu\", MenuType = MenuType.MENU, Icon = \"\", Router = \"/base-s/sp-stu\", Component = \"\", Permission = \"\", OpenType = MenuOpenType.COMPONENT, Visible = true, Sort = 40, Status = CommonStatus.ENABLE },",""]
[10114,{"$f":"A$17","v":10113},{"$f":"C$17&\"[\"&B18&\"],\"","v":"[0],[10100],[10113],"},"添加",{"$f":"E$17&\"/\"&D18","v":"基础资料/特殊学生管理/添加"},"add","MenuType.BUTTON",{"$nulls":4},{"$f":"F$4&\".\"&F$17&\".\"&F18","v":"base-s.sp-stu.add"},"MenuOpenType.NONE",null,"true",null,0,"CommonStatus.ENABLE",null,"            new SysMenu { Id = 10114, Pid = 10113, Pids = \"[0],[10100],[10113],\", Name = \"添加\", Code = \"add\", MenuType = MenuType.BUTTON, Icon = \"\", Router = \"\", Component = \"\", Permission = \"base-s.sp-stu.add\", OpenType = MenuOpenType.NONE, Visible = true, Sort = 0, Status = CommonStatus.ENABLE },","BASE_S_SP_STU_ADD"]
[10115,{"$f":"A$17","v":10113},{"$f":"C$17&\"[\"&B19&\"],\"","v":"[0],[10100],[10113],"},"修改",{"$f":"E$17&\"/\"&D19","v":"基础资料/特殊学生管理/修改"},"edit","MenuType.BUTTON",{"$nulls":4},{"$f":"F$4&\".\"&F$17&\".\"&F19","v":"base-s.sp-stu.edit"},"MenuOpenType.NONE",null,"true",null,0,"CommonStatus.ENABLE",null,"            new SysMenu { Id = 10115, Pid = 10113, Pids = \"[0],[10100],[10113],\", Name = \"修改\", Code = \"edit\", MenuType = MenuType.BUTTON, Icon = \"\", Router = \"\", Component = \"\", Permission = \"base-s.sp-stu.edit\", OpenType = MenuOpenType.NONE, Visible = true, Sort = 0, Status = CommonStatus.ENABLE },","BASE_S_SP_STU_EDIT"]
[10116,{"$f":"A$17","v":10113},{"$f":"C$17&\"[\"&B20&\"],\"","v":"[0],[10100],[10113],"},"删除",{"$f":"E$17&\"/\"&D20","v":"基础资料/特殊学生管理/删除"},"del","MenuType.BUTTON",{"$nulls":4},{"$f":"F$4&\".\"&F$17&\".\"&F20","v":"base-s.sp-stu.del"},"MenuOpenType.NONE",null,"true",null,0,"CommonStatus.ENABLE",null,"            new SysMenu { Id = 10116, Pid = 10113, Pids = \"[0],[10100],[10113],\", Name = \"删除\", Code = \"del\", MenuType = MenuType.BUTTON, Icon = \"\", Router = \"\", Component = \"\", Permission = \"base-s.sp-stu.del\", OpenType = MenuOpenType.NONE, Visible = true, Sort = 0, Status = CommonStatus.ENABLE },","BASE_S_SP_STU_DEL"]
[]
[10200,0,{"$f":"\"[\"&B22&\"],\"","v":"[0],"},"监测管理",{"$f":"D22","v":"监测管理"},"exam-c","MenuType.FOLDER",null,"order",{"$f":"\"/\"&F22","v":"/exam-c"},null,null,"MenuOpenType.NONE",null,"true",null,{"$f":"A22","v":10200},"CommonStatus.ENABLE",null,{"$f":"\"            new SysMenu { Id = \"&A22&\", Pid = \"&B22&\", Pids = \"\"\"&C22&\"\"\", Name = \"\"\"&D22&\"\"\", Code = \"\"\"&F22&\"\"\", MenuType = \"&G22&\", Icon = \"\"\"&I22&\"\"\", Router = \"\"\"&J22&\"\"\", Component = \"\"\"&K22&\"\"\", Permission = \"\"\"&L22&\"\"\", OpenType = \"&M22&\", Visible = \"&O22&\", Sort = \"&Q22&\", Status = \"&R22&\" },\"","v":"            new SysMenu { Id = 10200, Pid = 0, Pids = \"[0],\", Name = \"监测管理\", Code = \"exam-c\", MenuType = MenuType.FOLDER, Icon = \"order\", Router = \"/exam-c\", Component = \"\", Permission = \"\", OpenType = MenuOpenType.NONE, Visible = true, Sort = 10200, Status = CommonStatus.ENABLE },"},{"$f":"UPPER(SUBSTITUTE(SUBSTITUTE(L22,\"-\",\"_\"),\".\",\"_\"))","v":""}]
[10201,{"$f":"A$22","v":10200},{"$f":"C$22&\"[\"&B23&\"],\"","v":"[0],[10200],"},"监测计划管理",{"$f":"E$22&\"/\"&D23","v":"监测管理/监测计划管理"},"plan","MenuType.MENU",null,null,{"$f":"J$22&\"/\"&F23","v":"/exam-c/plan"},null,null,"MenuOpenType.COMPONENT",null,"true",null,10,"CommonStatus.ENABLE",null,{"$f":"\"            new SysMenu { Id = \"&A23&\", Pid = \"&B23&\", Pids = \"\"\"&C23&\"\"\", Name = \"\"\"&D23&\"\"\", Code = \"\"\"&F23&\"\"\", MenuType = \"&G23&\", Icon = \"\"\"&I23&\"\"\", Router = \"\"\"&J23&\"\"\", Component = \"\"\"&K23&\"\"\", Permission = \"\"\"&L23&\"\"\", OpenType = \"&M23&\", Visible = \"&O23&\", Sort = \"&Q23&\", Status = \"&R23&\" },\"","v":"            new SysMenu { Id = 10201, Pid = 10200, Pids = \"[0],[10200],\", Name = \"监测计划管理\", Code = \"plan\", MenuType = MenuType.MENU, Icon = \"\", Router = \"/exam-c/plan\", Component = \"\", Permission = \"\", OpenType = MenuOpenType.COMPONENT, Visible = true, Sort = 10, Status = CommonStatus.ENABLE },"},{"$f":"UPPER(SUBSTITUTE(SUBSTITUTE(L23,\"-\",\"_\"),\".\",\"_\"))","v":""}]
[10202,{"$f":"A$23","v":10201},{"$f":"C$23&\"[\"&B24&\"],\"","v":"[0],[10200],[10201],"},"添加",{"$f":"E$23&\"/\"&D24","v":"监测管理/监测计划管理/添加"},"add","MenuType.BUTTON",{"$nulls":4},{"$f":"F$22&\".\"&F$23&\".\"&F24","v":"exam-c.plan.add"},"MenuOpenType.NONE",null,"true",null,0,"CommonStatus.ENABLE",null,"            new SysMenu { Id = 10202, Pid = 10201, Pids = \"[0],[10200],[10201],\", Name = \"添加\", Code = \"add\", MenuType = MenuType.BUTTON, Icon = \"\", Router = \"\", Component = \"\", Permission = \"exam-c.plan.add\", OpenType = MenuOpenType.NONE, Visible = true, Sort = 0, Status = CommonStatus.ENABLE },","EXAM_C_PLAN_ADD"]
[10203,{"$f":"A$23","v":10201},{"$f":"C$23&\"[\"&B25&\"],\"","v":"[0],[10200],[10201],"},"修改",{"$f":"E$23&\"/\"&D25","v":"监测管理/监测计划管理/修改"},"edit","MenuType.BUTTON",{"$nulls":4},{"$f":"F$22&\".\"&F$23&\".\"&F25","v":"exam-c.plan.edit"},"MenuOpenType.NONE",null,"true",null,0,"CommonStatus.ENABLE",null,"            new SysMenu { Id = 10203, Pid = 10201, Pids = \"[0],[10200],[10201],\", Name = \"修改\", Code = \"edit\", MenuType = MenuType.BUTTON, Icon = \"\", Router = \"\", Component = \"\", Permission = \"exam-c.plan.edit\", OpenType = MenuOpenType.NONE, Visible = true, Sort = 0, Status = CommonStatus.ENABLE },","EXAM_C_PLAN_EDIT"]
[10204,{"$f":"A$23","v":10201},{"$f":"C$23&\"[\"&B26&\"],\"","v":"[0],[10200],[10201],"},"删除",{"$f":"E$23&\"/\"&D26","v":"监测管理/监测计划管理/删除"},"del","MenuType.BUTTON",{"$nulls":4},{"$f":"F$22&\".\"&F$23&\".\"&F26","v":"exam-c.plan.del"},"MenuOpenType.NONE",null,"true",null,0,"CommonStatus.ENABLE",null,"            new SysMenu { Id = 10204, Pid = 10201, Pids = \"[0],[10200],[10201],\", Name = \"删除\", Code = \"del\", MenuType = MenuType.BUTTON, Icon = \"\", Router = \"\", Component = \"\", Permission = \"exam-c.plan.del\", OpenType = MenuOpenType.NONE, Visible = true, Sort = 0, Status = CommonStatus.ENABLE },","EXAM_C_PLAN_DEL"]
[10205,{"$f":"A$23","v":10201},{"$f":"C$23&\"[\"&B27&\"],\"","v":"[0],[10200],[10201],"},"发布",{"$f":"E$23&\"/\"&D27","v":"监测管理/监测计划管理/发布"},"publish","MenuType.BUTTON",{"$nulls":4},{"$f":"F$22&\".\"&F$23&\".\"&F27","v":"exam-c.plan.publish"},"MenuOpenType.NONE",null,"true",null,0,"CommonStatus.ENABLE",null,"            new SysMenu { Id = 10205, Pid = 10201, Pids = \"[0],[10200],[10201],\", Name = \"发布\", Code = \"publish\", MenuType = MenuType.BUTTON, Icon = \"\", Router = \"\", Component = \"\", Permission = \"exam-c.plan.publish\", OpenType = MenuOpenType.NONE, Visible = true, Sort = 0, Status = CommonStatus.ENABLE },","EXAM_C_PLAN_PUBLISH"]
[10206,{"$f":"A$22","v":10200},{"$f":"C$22&\"[\"&B28&\"],\"","v":"[0],[10200],"},"监测学生管理",{"$f":"E$22&\"/\"&D28","v":"监测管理/监测学生管理"},"stu","MenuType.MENU",null,null,{"$f":"J$22&\"/\"&F28","v":"/exam-c/stu"},null,null,"MenuOpenType.COMPONENT",null,"true",null,20,"CommonStatus.ENABLE",null,"            new SysMenu { Id = 10206, Pid = 10200, Pids = \"[0],[10200],\", Name = \"监测学生管理\", Code = \"stu\", MenuType = MenuType.MENU, Icon = \"\", Router = \"/exam-c/stu\", Component = \"\", Permission = \"\", OpenType = MenuOpenType.COMPONENT, Visible = true, Sort = 20, Status = CommonStatus.ENABLE },",""]
[10207,{"$f":"A$28","v":10206},{"$f":"C$28&\"[\"&B29&\"],\"","v":"[0],[10200],[10206],"},"添加",{"$f":"E$28&\"/\"&D29","v":"监测管理/监测学生管理/添加"},"add","MenuType.BUTTON",{"$nulls":4},{"$f":"F$22&\".\"&F$28&\".\"&F29","v":"exam-c.stu.add"},"MenuOpenType.NONE",null,"true",null,0,"CommonStatus.ENABLE",null,"            new SysMenu { Id = 10207, Pid = 10206, Pids = \"[0],[10200],[10206],\", Name = \"添加\", Code = \"add\", MenuType = MenuType.BUTTON, Icon = \"\", Router = \"\", Component = \"\", Permission = \"exam-c.stu.add\", OpenType = MenuOpenType.NONE, Visible = true, Sort = 0, Status = CommonStatus.ENABLE },","EXAM_C_STU_ADD"]
[10208,{"$f":"A$28","v":10206},{"$f":"C$28&\"[\"&B30&\"],\"","v":"[0],[10200],[10206],"},"修改",{"$f":"E$28&\"/\"&D30","v":"监测管理/监测学生管理/修改"},"edit","MenuType.BUTTON",{"$nulls":4},{"$f":"F$22&\".\"&F$28&\".\"&F30","v":"exam-c.stu.edit"},"MenuOpenType.NONE",null,"true",null,0,"CommonStatus.ENABLE",null,"            new SysMenu { Id = 10208, Pid = 10206, Pids = \"[0],[10200],[10206],\", Name = \"修改\", Code = \"edit\", MenuType = MenuType.BUTTON, Icon = \"\", Router = \"\", Component = \"\", Permission = \"exam-c.stu.edit\", OpenType = MenuOpenType.NONE, Visible = true, Sort = 0, Status = CommonStatus.ENABLE },","EXAM_C_STU_EDIT"]
[10209,{"$f":"A$28","v":10206},{"$f":"C$28&\"[\"&B31&\"],\"","v":"[0],[10200],[10206],"},"删除",{"$f":"E$28&\"/\"&D31","v":"监测管理/监测学生管理/删除"},"del","MenuType.BUTTON",{"$nulls":4},{"$f":"F$22&\".\"&F$28&\".\"&F31","v":"exam-c.stu.del"},"MenuOpenType.NONE",null,"true",null,0,"CommonStatus.ENABLE",null,"            new SysMenu { Id = 10209, Pid = 10206, Pids = \"[0],[10200],[10206],\", Name = \"删除\", Code = \"del\", MenuType = MenuType.BUTTON, Icon = \"\", Router = \"\", Component = \"\", Permission = \"exam-c.stu.del\", OpenType = MenuOpenType.NONE, Visible = true, Sort = 0, Status = CommonStatus.ENABLE },","EXAM_C_STU_DEL"]
[10210,{"$f":"A$28","v":10206},{"$f":"C$28&\"[\"&B32&\"],\"","v":"[0],[10200],[10206],"},"下载",{"$f":"E$28&\"/\"&D32","v":"监测管理/监测学生管理/下载"},"download","MenuType.BUTTON",{"$nulls":4},{"$f":"F$22&\".\"&F$28&\".\"&F32","v":"exam-c.stu.download"},"MenuOpenType.NONE",null,"true",null,0,"CommonStatus.ENABLE",null,"            new SysMenu { Id = 10210, Pid = 10206, Pids = \"[0],[10200],[10206],\", Name = \"下载\", Code = \"download\", MenuType = MenuType.BUTTON, Icon = \"\", Router = \"\", Component = \"\", Permission = \"exam-c.stu.download\", OpenType = MenuOpenType.NONE, Visible = true, Sort = 0, Status = CommonStatus.ENABLE },","EXAM_C_STU_DOWNLOAD"]
[10211,{"$f":"A$22","v":10200},{"$f":"C$22&\"[\"&B33&\"],\"","v":"[0],[10200],"},"监测抽样管理",{"$f":"E$22&\"/\"&D33","v":"监测管理/监测抽样管理"},"sample","MenuType.MENU",null,null,{"$f":"J$22&\"/\"&F33","v":"/exam-c/sample"},null,null,"MenuOpenType.COMPONENT",null,"true",null,30,"CommonStatus.ENABLE",null,"            new SysMenu { Id = 10211, Pid = 10200, Pids = \"[0],[10200],\", Name = \"监测抽样管理\", Code = \"sample\", MenuType = MenuType.MENU, Icon = \"\", Router = \"/exam-c/sample\", Component = \"\", Permission = \"\", OpenType = MenuOpenType.COMPONENT, Visible = true, Sort = 30, Status = CommonStatus.ENABLE },",""]
[10212,{"$f":"A$33","v":10211},{"$f":"C$33&\"[\"&B34&\"],\"","v":"[0],[10200],[10211],"},"添加",{"$f":"E$33&\"/\"&D34","v":"监测管理/监测抽样管理/添加"},"add","MenuType.BUTTON",{"$nulls":4},{"$f":"F$22&\".\"&F$33&\".\"&F34","v":"exam-c.sample.add"},"MenuOpenType.NONE",null,"true",null,0,"CommonStatus.ENABLE",null,"            new SysMenu { Id = 10212, Pid = 10211, Pids = \"[0],[10200],[10211],\", Name = \"添加\", Code = \"add\", MenuType = MenuType.BUTTON, Icon = \"\", Router = \"\", Component = \"\", Permission = \"exam-c.sample.add\", OpenType = MenuOpenType.NONE, Visible = true, Sort = 0, Status = CommonStatus.ENABLE },",{"$f":"UPPER(SUBSTITUTE(SUBSTITUTE(L34,\"-\",\"_\"),\".\",\"_\"))","v":"EXAM_C_SAMPLE_ADD"}]
[10213,10211,"[0],[10200],[10211],","修改","监测管理/监测抽样管理/修改","edit","MenuType.BUTTON",{"$nulls":4},"exam-c.sample.edit","MenuOpenType.NONE",null,"true",null,0,"CommonStatus.ENABLE",null,"            new SysMenu { Id = 10213, Pid = 10211, Pids = \"[0],[10200],[10211],\", Name = \"修改\", Code = \"edit\", MenuType = MenuType.BUTTON, Icon = \"\", Router = \"\", Component = \"\", Permission = \"exam-c.sample.edit\", OpenType = MenuOpenType.NONE, Visible = true, Sort = 0, Status = CommonStatus.ENABLE },","EXAM_C_SAMPLE_EDIT"]
[10214,10211,"[0],[10200],[10211],","删除","监测管理/监测抽样管理/删除","del","MenuType.BUTTON",{"$nulls":4},"exam-c.sample.del","MenuOpenType.NONE",null,"true",null,0,"CommonStatus.ENABLE",null,"            new SysMenu { Id = 10214, Pid = 10211, Pids = \"[0],[10200],[10211],\", Name = \"删除\", Code = \"del\", MenuType = MenuType.BUTTON, Icon = \"\", Router = \"\", Component = \"\", Permission = \"exam-c.sample.del\", OpenType = MenuOpenType.NONE, Visible = true, Sort = 0, Status = CommonStatus.ENABLE },","EXAM_C_SAMPLE_DEL"]
[10215,10211,"[0],[10200],[10211],","下载","监测管理/监测抽样管理/下载","download","MenuType.BUTTON",{"$nulls":4},"exam-c.sample.download","MenuOpenType.NONE",null,"true",null,0,"CommonStatus.ENABLE",null,"            new SysMenu { Id = 10215, Pid = 10211, Pids = \"[0],[10200],[10211],\", Name = \"下载\", Code = \"download\", MenuType = MenuType.BUTTON, Icon = \"\", Router = \"\", Component = \"\", Permission = \"exam-c.sample.download\", OpenType = MenuOpenType.NONE, Visible = true, Sort = 0, Status = CommonStatus.ENABLE },","EXAM_C_SAMPLE_DOWNLOAD"]
[10216,10211,"[0],[10200],[10211],","发布","监测管理/监测抽样管理/发布","publish","MenuType.BUTTON",{"$nulls":4},"exam-c.sample.publish","MenuOpenType.NONE",null,"true",null,0,"CommonStatus.ENABLE",null,"            new SysMenu { Id = 10216, Pid = 10211, Pids = \"[0],[10200],[10211],\", Name = \"发布\", Code = \"publish\", MenuType = MenuType.BUTTON, Icon = \"\", Router = \"\", Component = \"\", Permission = \"exam-c.sample.publish\", OpenType = MenuOpenType.NONE, Visible = true, Sort = 0, Status = CommonStatus.ENABLE },","EXAM_C_SAMPLE_PUBLISH"]
[10217,{"$f":"A$22","v":10200},{"$f":"C$22&\"[\"&B39&\"],\"","v":"[0],[10200],"},"特殊学生管理",{"$f":"E$22&\"/\"&D39","v":"监测管理/特殊学生管理"},"sp-stu","MenuType.MENU",null,null,{"$f":"J$22&\"/\"&F39","v":"/exam-c/sp-stu"},null,null,"MenuOpenType.COMPONENT",null,"true",null,40,"CommonStatus.ENABLE",null,"            new SysMenu { Id = 10217, Pid = 10200, Pids = \"[0],[10200],\", Name = \"特殊学生管理\", Code = \"sp-stu\", MenuType = MenuType.MENU, Icon = \"\", Router = \"/exam-c/sp-stu\", Component = \"\", Permission = \"\", OpenType = MenuOpenType.COMPONENT, Visible = true, Sort = 40, Status = CommonStatus.ENABLE },",""]
[10218,{"$f":"A$39","v":10217},{"$f":"C$39&\"[\"&B40&\"],\"","v":"[0],[10200],[10217],"},"添加",{"$f":"E$39&\"/\"&D40","v":"监测管理/特殊学生管理/添加"},"add","MenuType.BUTTON",{"$nulls":4},{"$f":"F$22&\".\"&F$39&\".\"&F40","v":"exam-c.sp-stu.add"},"MenuOpenType.NONE",null,"true",null,0,"CommonStatus.ENABLE",null,"            new SysMenu { Id = 10218, Pid = 10217, Pids = \"[0],[10200],[10217],\", Name = \"添加\", Code = \"add\", MenuType = MenuType.BUTTON, Icon = \"\", Router = \"\", Component = \"\", Permission = \"exam-c.sp-stu.add\", OpenType = MenuOpenType.NONE, Visible = true, Sort = 0, Status = CommonStatus.ENABLE },","EXAM_C_SP_STU_ADD"]
[10219,10217,"[0],[10200],[10217],","修改","监测管理/特殊学生管理/修改","edit","MenuType.BUTTON",{"$nulls":4},"exam-c.sp-stu.edit","MenuOpenType.NONE",null,"true",null,0,"CommonStatus.ENABLE",null,"            new SysMenu { Id = 10219, Pid = 10217, Pids = \"[0],[10200],[10217],\", Name = \"修改\", Code = \"edit\", MenuType = MenuType.BUTTON, Icon = \"\", Router = \"\", Component = \"\", Permission = \"exam-c.sp-stu.edit\", OpenType = MenuOpenType.NONE, Visible = true, Sort = 0, Status = CommonStatus.ENABLE },","EXAM_C_SP_STU_EDIT"]
[10220,10217,"[0],[10200],[10217],","删除","监测管理/特殊学生管理/删除","del","MenuType.BUTTON",{"$nulls":4},"exam-c.sp-stu.del","MenuOpenType.NONE",null,"true",null,0,"CommonStatus.ENABLE",null,"            new SysMenu { Id = 10220, Pid = 10217, Pids = \"[0],[10200],[10217],\", Name = \"删除\", Code = \"del\", MenuType = MenuType.BUTTON, Icon = \"\", Router = \"\", Component = \"\", Permission = \"exam-c.sp-stu.del\", OpenType = MenuOpenType.NONE, Visible = true, Sort = 0, Status = CommonStatus.ENABLE },","EXAM_C_SP_STU_DEL"]
[10221,10217,"[0],[10200],[10217],","提交","监测管理/特殊学生管理/提交","submit","MenuType.BUTTON",{"$nulls":4},"exam-c.sp-stu.submit","MenuOpenType.NONE",null,"true",null,0,"CommonStatus.ENABLE",null,"            new SysMenu { Id = 10221, Pid = 10217, Pids = \"[0],[10200],[10217],\", Name = \"提交\", Code = \"submit\", MenuType = MenuType.BUTTON, Icon = \"\", Router = \"\", Component = \"\", Permission = \"exam-c.sp-stu.submit\", OpenType = MenuOpenType.NONE, Visible = true, Sort = 0, Status = CommonStatus.ENABLE },","EXAM_C_SP_STU_SUBMIT"]
[10222,10217,"[0],[10200],[10217],","审核","监测管理/特殊学生管理/审核","audit","MenuType.BUTTON",{"$nulls":4},"exam-c.sp-stu.audit","MenuOpenType.NONE",null,"true",null,0,"CommonStatus.ENABLE",null,"            new SysMenu { Id = 10222, Pid = 10217, Pids = \"[0],[10200],[10217],\", Name = \"审核\", Code = \"audit\", MenuType = MenuType.BUTTON, Icon = \"\", Router = \"\", Component = \"\", Permission = \"exam-c.sp-stu.audit\", OpenType = MenuOpenType.NONE, Visible = true, Sort = 0, Status = CommonStatus.ENABLE },","EXAM_C_SP_STU_AUDIT"]
[10223,10217,"[0],[10200],[10217],","下载","监测管理/特殊学生管理/下载","download","MenuType.BUTTON",{"$nulls":4},"exam-c.sp-stu.download","MenuOpenType.NONE",null,"true",null,0,"CommonStatus.ENABLE",null,"            new SysMenu { Id = 10223, Pid = 10217, Pids = \"[0],[10200],[10217],\", Name = \"下载\", Code = \"download\", MenuType = MenuType.BUTTON, Icon = \"\", Router = \"\", Component = \"\", Permission = \"exam-c.sp-stu.download\", OpenType = MenuOpenType.NONE, Visible = true, Sort = 0, Status = CommonStatus.ENABLE },","EXAM_C_SP_STU_DOWNLOAD"]
[10224,{"$f":"A$22","v":10200},{"$f":"C$22&\"[\"&B46&\"],\"","v":"[0],[10200],"},"教师信息管理",{"$f":"E$22&\"/\"&D46","v":"监测管理/教师信息管理"},"teacher","MenuType.MENU",null,null,{"$f":"J$22&\"/\"&F46","v":"/exam-c/teacher"},null,null,"MenuOpenType.COMPONENT",null,"true",null,50,"CommonStatus.ENABLE",null,"            new SysMenu { Id = 10224, Pid = 10200, Pids = \"[0],[10200],\", Name = \"教师信息管理\", Code = \"teacher\", MenuType = MenuType.MENU, Icon = \"\", Router = \"/exam-c/teacher\", Component = \"\", Permission = \"\", OpenType = MenuOpenType.COMPONENT, Visible = true, Sort = 50, Status = CommonStatus.ENABLE },",""]
[10225,{"$f":"A$46","v":10224},{"$f":"C$46&\"[\"&B47&\"],\"","v":"[0],[10200],[10224],"},"添加",{"$f":"E$46&\"/\"&D47","v":"监测管理/教师信息管理/添加"},"add","MenuType.BUTTON",{"$nulls":4},{"$f":"F$22&\".\"&F$46&\".\"&F47","v":"exam-c.teacher.add"},"MenuOpenType.NONE",null,"true",null,0,"CommonStatus.ENABLE",null,"            new SysMenu { Id = 10225, Pid = 10224, Pids = \"[0],[10200],[10224],\", Name = \"添加\", Code = \"add\", MenuType = MenuType.BUTTON, Icon = \"\", Router = \"\", Component = \"\", Permission = \"exam-c.teacher.add\", OpenType = MenuOpenType.NONE, Visible = true, Sort = 0, Status = CommonStatus.ENABLE },","EXAM_C_TEACHER_ADD"]
[10226,{"$f":"A$46","v":10224},{"$f":"C$46&\"[\"&B48&\"],\"","v":"[0],[10200],[10224],"},"修改",{"$f":"E$46&\"/\"&D48","v":"监测管理/教师信息管理/修改"},"edit","MenuType.BUTTON",{"$nulls":4},{"$f":"F$22&\".\"&F$46&\".\"&F48","v":"exam-c.teacher.edit"},"MenuOpenType.NONE",null,"true",null,0,"CommonStatus.ENABLE",null,"            new SysMenu { Id = 10226, Pid = 10224, Pids = \"[0],[10200],[10224],\", Name = \"修改\", Code = \"edit\", MenuType = MenuType.BUTTON, Icon = \"\", Router = \"\", Component = \"\", Permission = \"exam-c.teacher.edit\", OpenType = MenuOpenType.NONE, Visible = true, Sort = 0, Status = CommonStatus.ENABLE },","EXAM_C_TEACHER_EDIT"]
[10227,{"$f":"A$46","v":10224},{"$f":"C$46&\"[\"&B49&\"],\"","v":"[0],[10200],[10224],"},"删除",{"$f":"E$46&\"/\"&D49","v":"监测管理/教师信息管理/删除"},"del","MenuType.BUTTON",{"$nulls":4},{"$f":"F$22&\".\"&F$46&\".\"&F49","v":"exam-c.teacher.del"},"MenuOpenType.NONE",null,"true",null,0,"CommonStatus.ENABLE",null,"            new SysMenu { Id = 10227, Pid = 10224, Pids = \"[0],[10200],[10224],\", Name = \"删除\", Code = \"del\", MenuType = MenuType.BUTTON, Icon = \"\", Router = \"\", Component = \"\", Permission = \"exam-c.teacher.del\", OpenType = MenuOpenType.NONE, Visible = true, Sort = 0, Status = CommonStatus.ENABLE },","EXAM_C_TEACHER_DEL"]
[10228,{"$f":"A$46","v":10224},{"$f":"C$46&\"[\"&B50&\"],\"","v":"[0],[10200],[10224],"},"下载",{"$f":"E$46&\"/\"&D50","v":"监测管理/教师信息管理/下载"},"download","MenuType.BUTTON",{"$nulls":4},{"$f":"F$22&\".\"&F$46&\".\"&F50","v":"exam-c.teacher.download"},"MenuOpenType.NONE",null,"true",null,0,"CommonStatus.ENABLE",null,"            new SysMenu { Id = 10228, Pid = 10224, Pids = \"[0],[10200],[10224],\", Name = \"下载\", Code = \"download\", MenuType = MenuType.BUTTON, Icon = \"\", Router = \"\", Component = \"\", Permission = \"exam-c.teacher.download\", OpenType = MenuOpenType.NONE, Visible = true, Sort = 0, Status = CommonStatus.ENABLE },","EXAM_C_TEACHER_DOWNLOAD"]
[10229,{"$f":"A$22","v":10200},{"$f":"C$22&\"[\"&B51&\"],\"","v":"[0],[10200],"},"教师学科管理",{"$f":"E$22&\"/\"&D51","v":"监测管理/教师学科管理"},"t-course","MenuType.MENU",null,null,{"$f":"J$22&\"/\"&F51","v":"/exam-c/t-course"},null,null,"MenuOpenType.COMPONENT",null,"true",null,50,"CommonStatus.ENABLE",null,"            new SysMenu { Id = 10229, Pid = 10200, Pids = \"[0],[10200],\", Name = \"教师学科管理\", Code = \"t-course\", MenuType = MenuType.MENU, Icon = \"\", Router = \"/exam-c/t-course\", Component = \"\", Permission = \"\", OpenType = MenuOpenType.COMPONENT, Visible = true, Sort = 50, Status = CommonStatus.ENABLE },",""]
[10230,{"$f":"A$51","v":10229},{"$f":"C$51&\"[\"&B52&\"],\"","v":"[0],[10200],[10229],"},"添加",{"$f":"E$51&\"/\"&D52","v":"监测管理/教师学科管理/添加"},"add","MenuType.BUTTON",{"$nulls":4},{"$f":"F$22&\".\"&F$51&\".\"&F52","v":"exam-c.t-course.add"},"MenuOpenType.NONE",null,"true",null,0,"CommonStatus.ENABLE",null,"            new SysMenu { Id = 10230, Pid = 10229, Pids = \"[0],[10200],[10229],\", Name = \"添加\", Code = \"add\", MenuType = MenuType.BUTTON, Icon = \"\", Router = \"\", Component = \"\", Permission = \"exam-c.t-course.add\", OpenType = MenuOpenType.NONE, Visible = true, Sort = 0, Status = CommonStatus.ENABLE },","EXAM_C_T_COURSE_ADD"]
[10231,{"$f":"A$51","v":10229},{"$f":"C$51&\"[\"&B53&\"],\"","v":"[0],[10200],[10229],"},"修改",{"$f":"E$51&\"/\"&D53","v":"监测管理/教师学科管理/修改"},"edit","MenuType.BUTTON",{"$nulls":4},{"$f":"F$22&\".\"&F$51&\".\"&F53","v":"exam-c.t-course.edit"},"MenuOpenType.NONE",null,"true",null,0,"CommonStatus.ENABLE",null,"            new SysMenu { Id = 10231, Pid = 10229, Pids = \"[0],[10200],[10229],\", Name = \"修改\", Code = \"edit\", MenuType = MenuType.BUTTON, Icon = \"\", Router = \"\", Component = \"\", Permission = \"exam-c.t-course.edit\", OpenType = MenuOpenType.NONE, Visible = true, Sort = 0, Status = CommonStatus.ENABLE },","EXAM_C_T_COURSE_EDIT"]
[10232,{"$f":"A$51","v":10229},{"$f":"C$51&\"[\"&B54&\"],\"","v":"[0],[10200],[10229],"},"删除",{"$f":"E$51&\"/\"&D54","v":"监测管理/教师学科管理/删除"},"del","MenuType.BUTTON",{"$nulls":4},{"$f":"F$22&\".\"&F$51&\".\"&F54","v":"exam-c.t-course.del"},"MenuOpenType.NONE",null,"true",null,0,"CommonStatus.ENABLE",null,"            new SysMenu { Id = 10232, Pid = 10229, Pids = \"[0],[10200],[10229],\", Name = \"删除\", Code = \"del\", MenuType = MenuType.BUTTON, Icon = \"\", Router = \"\", Component = \"\", Permission = \"exam-c.t-course.del\", OpenType = MenuOpenType.NONE, Visible = true, Sort = 0, Status = CommonStatus.ENABLE },","EXAM_C_T_COURSE_DEL"]
[10233,{"$f":"A$51","v":10229},{"$f":"C$51&\"[\"&B55&\"],\"","v":"[0],[10200],[10229],"},"下载",{"$f":"E$51&\"/\"&D55","v":"监测管理/教师学科管理/下载"},"download","MenuType.BUTTON",{"$nulls":4},{"$f":"F$22&\".\"&F$51&\".\"&F55","v":"exam-c.t-course.download"},"MenuOpenType.NONE",null,"true",null,0,"CommonStatus.ENABLE",null,"            new SysMenu { Id = 10233, Pid = 10229, Pids = \"[0],[10200],[10229],\", Name = \"下载\", Code = \"download\", MenuType = MenuType.BUTTON, Icon = \"\", Router = \"\", Component = \"\", Permission = \"exam-c.t-course.download\", OpenType = MenuOpenType.NONE, Visible = true, Sort = 0, Status = CommonStatus.ENABLE },","EXAM_C_T_COURSE_DOWNLOAD"]
[10234,{"$f":"A$22","v":10200},{"$f":"C$22&\"[\"&B56&\"],\"","v":"[0],[10200],"},"缺测替补管理",{"$f":"E$22&\"/\"&D56","v":"监测管理/缺测替补管理"},"absent","MenuType.MENU",null,null,{"$f":"J$22&\"/\"&F56","v":"/exam-c/absent"},null,null,"MenuOpenType.COMPONENT",null,"true",null,60,"CommonStatus.ENABLE",null,"            new SysMenu { Id = 10234, Pid = 10200, Pids = \"[0],[10200],\", Name = \"缺测替补管理\", Code = \"absent\", MenuType = MenuType.MENU, Icon = \"\", Router = \"/exam-c/absent\", Component = \"\", Permission = \"\", OpenType = MenuOpenType.COMPONENT, Visible = true, Sort = 60, Status = CommonStatus.ENABLE },",{"$f":"UPPER(SUBSTITUTE(SUBSTITUTE(L56,\"-\",\"_\"),\".\",\"_\"))","v":""}]
[10235,{"$f":"A$56","v":10234},{"$f":"C$56&\"[\"&B57&\"],\"","v":"[0],[10200],[10234],"},"添加",{"$f":"E$56&\"/\"&D57","v":"监测管理/缺测替补管理/添加"},"add","MenuType.BUTTON",{"$nulls":4},{"$f":"F$22&\".\"&F$56&\".\"&F57","v":"exam-c.absent.add"},"MenuOpenType.NONE",null,"true",null,0,"CommonStatus.ENABLE",null,"            new SysMenu { Id = 10235, Pid = 10234, Pids = \"[0],[10200],[10234],\", Name = \"添加\", Code = \"add\", MenuType = MenuType.BUTTON, Icon = \"\", Router = \"\", Component = \"\", Permission = \"exam-c.absent.add\", OpenType = MenuOpenType.NONE, Visible = true, Sort = 0, Status = CommonStatus.ENABLE },","EXAM_C_ABSENT_ADD"]
[10236,10234,"[0],[10200],[10234],","修改","监测管理/缺测替补管理/修改","edit","MenuType.BUTTON",{"$nulls":4},"exam-c.absent.edit","MenuOpenType.NONE",null,"true",null,0,"CommonStatus.ENABLE",null,"            new SysMenu { Id = 10236, Pid = 10234, Pids = \"[0],[10200],[10234],\", Name = \"修改\", Code = \"edit\", MenuType = MenuType.BUTTON, Icon = \"\", Router = \"\", Component = \"\", Permission = \"exam-c.absent.edit\", OpenType = MenuOpenType.NONE, Visible = true, Sort = 0, Status = CommonStatus.ENABLE },","EXAM_C_ABSENT_EDIT"]
[10237,10234,"[0],[10200],[10234],","删除","监测管理/缺测替补管理/删除","del","MenuType.BUTTON",{"$nulls":4},"exam-c.absent.del","MenuOpenType.NONE",null,"true",null,0,"CommonStatus.ENABLE",null,"            new SysMenu { Id = 10237, Pid = 10234, Pids = \"[0],[10200],[10234],\", Name = \"删除\", Code = \"del\", MenuType = MenuType.BUTTON, Icon = \"\", Router = \"\", Component = \"\", Permission = \"exam-c.absent.del\", OpenType = MenuOpenType.NONE, Visible = true, Sort = 0, Status = CommonStatus.ENABLE },","EXAM_C_ABSENT_DEL"]
[10238,10234,"[0],[10200],[10234],","提交","监测管理/缺测替补管理/提交","submit","MenuType.BUTTON",{"$nulls":4},"exam-c.absent.submit","MenuOpenType.NONE",null,"true",null,0,"CommonStatus.ENABLE",null,"            new SysMenu { Id = 10238, Pid = 10234, Pids = \"[0],[10200],[10234],\", Name = \"提交\", Code = \"submit\", MenuType = MenuType.BUTTON, Icon = \"\", Router = \"\", Component = \"\", Permission = \"exam-c.absent.submit\", OpenType = MenuOpenType.NONE, Visible = true, Sort = 0, Status = CommonStatus.ENABLE },","EXAM_C_ABSENT_SUBMIT"]
[10239,10234,"[0],[10200],[10234],","审核","监测管理/缺测替补管理/审核","audit","MenuType.BUTTON",{"$nulls":4},"exam-c.absent.audit","MenuOpenType.NONE",null,"true",null,0,"CommonStatus.ENABLE",null,"            new SysMenu { Id = 10239, Pid = 10234, Pids = \"[0],[10200],[10234],\", Name = \"审核\", Code = \"audit\", MenuType = MenuType.BUTTON, Icon = \"\", Router = \"\", Component = \"\", Permission = \"exam-c.absent.audit\", OpenType = MenuOpenType.NONE, Visible = true, Sort = 0, Status = CommonStatus.ENABLE },","EXAM_C_ABSENT_AUDIT"]
[10240,10234,"[0],[10200],[10234],","下载","监测管理/缺测替补管理/下载","download","MenuType.BUTTON",{"$nulls":4},"exam-c.absent.download","MenuOpenType.NONE",null,"true",null,0,"CommonStatus.ENABLE",null,"            new SysMenu { Id = 10240, Pid = 10234, Pids = \"[0],[10200],[10234],\", Name = \"下载\", Code = \"download\", MenuType = MenuType.BUTTON, Icon = \"\", Router = \"\", Component = \"\", Permission = \"exam-c.absent.download\", OpenType = MenuOpenType.NONE, Visible = true, Sort = 0, Status = CommonStatus.ENABLE },","EXAM_C_ABSENT_DOWNLOAD"]
[10241,{"$f":"A$22","v":10200},{"$f":"C$22&\"[\"&B63&\"],\"","v":"[0],[10200],"},"监测结果管理",{"$f":"E$22&\"/\"&D63","v":"监测管理/监测结果管理"},"result","MenuType.MENU",null,null,{"$f":"J$22&\"/\"&F63","v":"/exam-c/result"},null,null,"MenuOpenType.COMPONENT",null,"true",null,70,"CommonStatus.ENABLE",null,"            new SysMenu { Id = 10241, Pid = 10200, Pids = \"[0],[10200],\", Name = \"监测结果管理\", Code = \"result\", MenuType = MenuType.MENU, Icon = \"\", Router = \"/exam-c/result\", Component = \"\", Permission = \"\", OpenType = MenuOpenType.COMPONENT, Visible = true, Sort = 70, Status = CommonStatus.ENABLE },",""]
[10242,{"$f":"A$63","v":10241},{"$f":"C$63&\"[\"&B64&\"],\"","v":"[0],[10200],[10241],"},"添加",{"$f":"E$63&\"/\"&D64","v":"监测管理/监测结果管理/添加"},"add","MenuType.BUTTON",{"$nulls":4},{"$f":"F$22&\".\"&F$63&\".\"&F64","v":"exam-c.result.add"},"MenuOpenType.NONE",null,"true",null,0,"CommonStatus.ENABLE",null,"            new SysMenu { Id = 10242, Pid = 10241, Pids = \"[0],[10200],[10241],\", Name = \"添加\", Code = \"add\", MenuType = MenuType.BUTTON, Icon = \"\", Router = \"\", Component = \"\", Permission = \"exam-c.result.add\", OpenType = MenuOpenType.NONE, Visible = true, Sort = 0, Status = CommonStatus.ENABLE },","EXAM_C_RESULT_ADD"]
[10243,{"$f":"A$63","v":10241},{"$f":"C$63&\"[\"&B65&\"],\"","v":"[0],[10200],[10241],"},"修改",{"$f":"E$63&\"/\"&D65","v":"监测管理/监测结果管理/修改"},"edit","MenuType.BUTTON",{"$nulls":4},{"$f":"F$22&\".\"&F$63&\".\"&F65","v":"exam-c.result.edit"},"MenuOpenType.NONE",null,"true",null,0,"CommonStatus.ENABLE",null,"            new SysMenu { Id = 10243, Pid = 10241, Pids = \"[0],[10200],[10241],\", Name = \"修改\", Code = \"edit\", MenuType = MenuType.BUTTON, Icon = \"\", Router = \"\", Component = \"\", Permission = \"exam-c.result.edit\", OpenType = MenuOpenType.NONE, Visible = true, Sort = 0, Status = CommonStatus.ENABLE },","EXAM_C_RESULT_EDIT"]
[10244,{"$f":"A$63","v":10241},{"$f":"C$63&\"[\"&B66&\"],\"","v":"[0],[10200],[10241],"},"删除",{"$f":"E$63&\"/\"&D66","v":"监测管理/监测结果管理/删除"},"del","MenuType.BUTTON",{"$nulls":4},{"$f":"F$22&\".\"&F$63&\".\"&F66","v":"exam-c.result.del"},"MenuOpenType.NONE",null,"true",null,0,"CommonStatus.ENABLE",null,"            new SysMenu { Id = 10244, Pid = 10241, Pids = \"[0],[10200],[10241],\", Name = \"删除\", Code = \"del\", MenuType = MenuType.BUTTON, Icon = \"\", Router = \"\", Component = \"\", Permission = \"exam-c.result.del\", OpenType = MenuOpenType.NONE, Visible = true, Sort = 0, Status = CommonStatus.ENABLE },","EXAM_C_RESULT_DEL"]
[10245,{"$f":"A$63","v":10241},{"$f":"C$63&\"[\"&B67&\"],\"","v":"[0],[10200],[10241],"},"发布",{"$f":"E$63&\"/\"&D67","v":"监测管理/监测结果管理/发布"},"publish","MenuType.BUTTON",{"$nulls":4},{"$f":"F$22&\".\"&F$63&\".\"&F67","v":"exam-c.result.publish"},"MenuOpenType.NONE",null,"true",null,0,"CommonStatus.ENABLE",null,"            new SysMenu { Id = 10245, Pid = 10241, Pids = \"[0],[10200],[10241],\", Name = \"发布\", Code = \"publish\", MenuType = MenuType.BUTTON, Icon = \"\", Router = \"\", Component = \"\", Permission = \"exam-c.result.publish\", OpenType = MenuOpenType.NONE, Visible = true, Sort = 0, Status = CommonStatus.ENABLE },","EXAM_C_RESULT_PUBLISH"]
[10246,{"$f":"A$63","v":10241},{"$f":"C$63&\"[\"&B68&\"],\"","v":"[0],[10200],[10241],"},"下载",{"$f":"E$63&\"/\"&D68","v":"监测管理/监测结果管理/下载"},"download","MenuType.BUTTON",{"$nulls":4},{"$f":"F$22&\".\"&F$63&\".\"&F68","v":"exam-c.result.download"},"MenuOpenType.NONE",null,"true",null,0,"CommonStatus.ENABLE",null,"            new SysMenu { Id = 10246, Pid = 10241, Pids = \"[0],[10200],[10241],\", Name = \"下载\", Code = \"download\", MenuType = MenuType.BUTTON, Icon = \"\", Router = \"\", Component = \"\", Permission = \"exam-c.result.download\", OpenType = MenuOpenType.NONE, Visible = true, Sort = 0, Status = CommonStatus.ENABLE },","EXAM_C_RESULT_DOWNLOAD"]
[10247,{"$f":"A$22","v":10200},{"$f":"C$22&\"[\"&B69&\"],\"","v":"[0],[10200],"},"特殊学生审核",{"$f":"E$22&\"/\"&D69","v":"监测管理/特殊学生审核"},"sp-stu-audit","MenuType.MENU",2,null,{"$f":"J$22&\"/\"&F69","v":"/exam-c/sp-stu-audit"},null,null,"MenuOpenType.COMPONENT",2,"true",1,39,"CommonStatus.ENABLE",1,"            new SysMenu { Id = 10247, Pid = 10200, Pids = \"[0],[10200],\", Name = \"特殊学生审核\", Code = \"sp-stu-audit\", MenuType = MenuType.MENU, Icon = \"\", Router = \"/exam-c/sp-stu-audit\", Component = \"\", Permission = \"\", OpenType = MenuOpenType.COMPONENT, Visible = true, Sort = 39, Status = CommonStatus.ENABLE },","",{"$f":"\"INSERT INTO sys_menu(id, pid, pids, `name`, `code`, menu_type, icon, router, permission, open_type, visible, sort, `status`) VALUES(\"&A69&\", \"&B69&\", '\"&C69&\"', '\"&D69&\"', '\"&F69&\"', \"&H69&\", '\"&I69&\"', '\"&J69&\"', ' \"&L69&\"', \"&N69&\", \"&P69&\", \"&Q69&\", \"&S69&\");\"","v":"INSERT INTO sys_menu(id, pid, pids, `name`, `code`, menu_type, icon, router, permission, open_type, visible, sort, `status`) VALUES(10247, 10200, '[0],[10200],', '特殊学生审核', 'sp-stu-audit', 2, '', '/exam-c/sp-stu-audit', ' ', 2, 1, 39, 1);"}]
[10248,{"$f":"A$69","v":10247},{"$f":"C$69&\"[\"&B70&\"],\"","v":"[0],[10200],[10247],"},"添加",{"$f":"E$69&\"/\"&D70","v":"监测管理/特殊学生审核/添加"},"add","MenuType.BUTTON",3,null,null,null,{"$f":"F$22&\".\"&F$69&\".\"&F70","v":"exam-c.sp-stu-audit.add"},"MenuOpenType.NONE",1,"true",1,0,"CommonStatus.ENABLE",1,"            new SysMenu { Id = 10248, Pid = 10247, Pids = \"[0],[10200],[10247],\", Name = \"添加\", Code = \"add\", MenuType = MenuType.BUTTON, Icon = \"\", Router = \"\", Component = \"\", Permission = \"exam-c.sp-stu-audit.add\", OpenType = MenuOpenType.NONE, Visible = true, Sort = 0, Status = CommonStatus.ENABLE },","EXAM_C_SP_STU_AUDIT_ADD",{"$f":"\"INSERT INTO sys_menu(id, pid, pids, `name`, `code`, menu_type, icon, router, permission, open_type, visible, sort, `status`) VALUES(\"&A70&\", \"&B70&\", '\"&C70&\"', '\"&D70&\"', '\"&F70&\"', \"&H70&\", '\"&I70&\"', '\"&J70&\"', ' \"&L70&\"', \"&N70&\", \"&P70&\", \"&Q70&\", \"&S70&\");\"","v":"INSERT INTO sys_menu(id, pid, pids, `name`, `code`, menu_type, icon, router, permission, open_type, visible, sort, `status`) VALUES(10248, 10247, '[0],[10200],[10247],', '添加', 'add', 3, '', '', ' exam-c.sp-stu-audit.add', 1, 1, 0, 1);"}]
[10249,{"$f":"A$69","v":10247},{"$f":"C$69&\"[\"&B71&\"],\"","v":"[0],[10200],[10247],"},"修改",{"$f":"E$69&\"/\"&D71","v":"监测管理/特殊学生审核/修改"},"edit","MenuType.BUTTON",3,null,null,null,{"$f":"F$22&\".\"&F$69&\".\"&F71","v":"exam-c.sp-stu-audit.edit"},"MenuOpenType.NONE",1,"true",1,0,"CommonStatus.ENABLE",1,"            new SysMenu { Id = 10249, Pid = 10247, Pids = \"[0],[10200],[10247],\", Name = \"修改\", Code = \"edit\", MenuType = MenuType.BUTTON, Icon = \"\", Router = \"\", Component = \"\", Permission = \"exam-c.sp-stu-audit.edit\", OpenType = MenuOpenType.NONE, Visible = true, Sort = 0, Status = CommonStatus.ENABLE },","EXAM_C_SP_STU_AUDIT_EDIT","INSERT INTO sys_menu(id, pid, pids, `name`, `code`, menu_type, icon, router, permission, open_type, visible, sort, `status`) VALUES(10249, 10247, '[0],[10200],[10247],', '修改', 'edit', 3, '', '', ' exam-c.sp-stu-audit.edit', 1, 1, 0, 1);"]
[10250,{"$f":"A$69","v":10247},{"$f":"C$69&\"[\"&B72&\"],\"","v":"[0],[10200],[10247],"},"删除",{"$f":"E$69&\"/\"&D72","v":"监测管理/特殊学生审核/删除"},"del","MenuType.BUTTON",3,null,null,null,{"$f":"F$22&\".\"&F$69&\".\"&F72","v":"exam-c.sp-stu-audit.del"},"MenuOpenType.NONE",1,"true",1,0,"CommonStatus.ENABLE",1,"            new SysMenu { Id = 10250, Pid = 10247, Pids = \"[0],[10200],[10247],\", Name = \"删除\", Code = \"del\", MenuType = MenuType.BUTTON, Icon = \"\", Router = \"\", Component = \"\", Permission = \"exam-c.sp-stu-audit.del\", OpenType = MenuOpenType.NONE, Visible = true, Sort = 0, Status = CommonStatus.ENABLE },","EXAM_C_SP_STU_AUDIT_DEL","INSERT INTO sys_menu(id, pid, pids, `name`, `code`, menu_type, icon, router, permission, open_type, visible, sort, `status`) VALUES(10250, 10247, '[0],[10200],[10247],', '删除', 'del', 3, '', '', ' exam-c.sp-stu-audit.del', 1, 1, 0, 1);"]
[10251,{"$f":"A$69","v":10247},{"$f":"C$69&\"[\"&B73&\"],\"","v":"[0],[10200],[10247],"},"提交",{"$f":"E$69&\"/\"&D73","v":"监测管理/特殊学生审核/提交"},"submit","MenuType.BUTTON",3,null,null,null,{"$f":"F$22&\".\"&F$69&\".\"&F73","v":"exam-c.sp-stu-audit.submit"},"MenuOpenType.NONE",1,"true",1,0,"CommonStatus.ENABLE",1,"            new SysMenu { Id = 10251, Pid = 10247, Pids = \"[0],[10200],[10247],\", Name = \"提交\", Code = \"submit\", MenuType = MenuType.BUTTON, Icon = \"\", Router = \"\", Component = \"\", Permission = \"exam-c.sp-stu-audit.submit\", OpenType = MenuOpenType.NONE, Visible = true, Sort = 0, Status = CommonStatus.ENABLE },","EXAM_C_SP_STU_AUDIT_SUBMIT","INSERT INTO sys_menu(id, pid, pids, `name`, `code`, menu_type, icon, router, permission, open_type, visible, sort, `status`) VALUES(10251, 10247, '[0],[10200],[10247],', '提交', 'submit', 3, '', '', ' exam-c.sp-stu-audit.submit', 1, 1, 0, 1);"]
[10252,{"$f":"A$69","v":10247},{"$f":"C$69&\"[\"&B74&\"],\"","v":"[0],[10200],[10247],"},"审核",{"$f":"E$69&\"/\"&D74","v":"监测管理/特殊学生审核/审核"},"audit","MenuType.BUTTON",3,null,null,null,{"$f":"F$22&\".\"&F$69&\".\"&F74","v":"exam-c.sp-stu-audit.audit"},"MenuOpenType.NONE",1,"true",1,0,"CommonStatus.ENABLE",1,"            new SysMenu { Id = 10252, Pid = 10247, Pids = \"[0],[10200],[10247],\", Name = \"审核\", Code = \"audit\", MenuType = MenuType.BUTTON, Icon = \"\", Router = \"\", Component = \"\", Permission = \"exam-c.sp-stu-audit.audit\", OpenType = MenuOpenType.NONE, Visible = true, Sort = 0, Status = CommonStatus.ENABLE },","EXAM_C_SP_STU_AUDIT_AUDIT","INSERT INTO sys_menu(id, pid, pids, `name`, `code`, menu_type, icon, router, permission, open_type, visible, sort, `status`) VALUES(10252, 10247, '[0],[10200],[10247],', '审核', 'audit', 3, '', '', ' exam-c.sp-stu-audit.audit', 1, 1, 0, 1);"]
[10253,{"$f":"A$69","v":10247},{"$f":"C$69&\"[\"&B75&\"],\"","v":"[0],[10200],[10247],"},"下载",{"$f":"E$69&\"/\"&D75","v":"监测管理/特殊学生审核/下载"},"download","MenuType.BUTTON",3,null,null,null,{"$f":"F$22&\".\"&F$69&\".\"&F75","v":"exam-c.sp-stu-audit.download"},"MenuOpenType.NONE",1,"true",1,0,"CommonStatus.ENABLE",1,"            new SysMenu { Id = 10253, Pid = 10247, Pids = \"[0],[10200],[10247],\", Name = \"下载\", Code = \"download\", MenuType = MenuType.BUTTON, Icon = \"\", Router = \"\", Component = \"\", Permission = \"exam-c.sp-stu-audit.download\", OpenType = MenuOpenType.NONE, Visible = true, Sort = 0, Status = CommonStatus.ENABLE },","EXAM_C_SP_STU_AUDIT_DOWNLOAD","INSERT INTO sys_menu(id, pid, pids, `name`, `code`, menu_type, icon, router, permission, open_type, visible, sort, `status`) VALUES(10253, 10247, '[0],[10200],[10247],', '下载', 'download', 3, '', '', ' exam-c.sp-stu-audit.download', 1, 1, 0, 1);"]
[]
[]
[]
[]
[10300,0,{"$f":"\"[\"&B80&\"],\"","v":"[0],"},"评估监测",{"$f":"D80","v":"评估监测"},"exam-s","MenuType.FOLDER",null,"box",{"$f":"\"/\"&F80","v":"/exam-s"},null,null,"MenuOpenType.NONE",null,"true",null,{"$f":"A80","v":10300},"CommonStatus.ENABLE",null,{"$f":"\"            new SysMenu { Id = \"&A80&\", Pid = \"&B80&\", Pids = \"\"\"&C80&\"\"\", Name = \"\"\"&D80&\"\"\", Code = \"\"\"&F80&\"\"\", MenuType = \"&G80&\", Icon = \"\"\"&I80&\"\"\", Router = \"\"\"&J80&\"\"\", Component = \"\"\"&K80&\"\"\", Permission = \"\"\"&L80&\"\"\", OpenType = \"&M80&\", Visible = \"&O80&\", Sort = \"&Q80&\", Status = \"&R80&\" },\"","v":"            new SysMenu { Id = 10300, Pid = 0, Pids = \"[0],\", Name = \"评估监测\", Code = \"exam-s\", MenuType = MenuType.FOLDER, Icon = \"box\", Router = \"/exam-s\", Component = \"\", Permission = \"\", OpenType = MenuOpenType.NONE, Visible = true, Sort = 10300, Status = CommonStatus.ENABLE },"},{"$f":"UPPER(SUBSTITUTE(SUBSTITUTE(L80,\"-\",\"_\"),\".\",\"_\"))","v":""}]
[10301,{"$f":"A$80","v":10300},{"$f":"C$80&\"[\"&B81&\"],\"","v":"[0],[10300],"},"评估监测计划",{"$f":"E$80&\"/\"&D81","v":"评估监测/评估监测计划"},"plan","MenuType.MENU",null,null,{"$f":"J$80&\"/\"&F81","v":"/exam-s/plan"},null,null,"MenuOpenType.COMPONENT",null,"true",null,10,"CommonStatus.ENABLE",null,{"$f":"\"            new SysMenu { Id = \"&A81&\", Pid = \"&B81&\", Pids = \"\"\"&C81&\"\"\", Name = \"\"\"&D81&\"\"\", Code = \"\"\"&F81&\"\"\", MenuType = \"&G81&\", Icon = \"\"\"&I81&\"\"\", Router = \"\"\"&J81&\"\"\", Component = \"\"\"&K81&\"\"\", Permission = \"\"\"&L81&\"\"\", OpenType = \"&M81&\", Visible = \"&O81&\", Sort = \"&Q81&\", Status = \"&R81&\" },\"","v":"            new SysMenu { Id = 10301, Pid = 10300, Pids = \"[0],[10300],\", Name = \"评估监测计划\", Code = \"plan\", MenuType = MenuType.MENU, Icon = \"\", Router = \"/exam-s/plan\", Component = \"\", Permission = \"\", OpenType = MenuOpenType.COMPONENT, Visible = true, Sort = 10, Status = CommonStatus.ENABLE },"},{"$f":"UPPER(SUBSTITUTE(SUBSTITUTE(L81,\"-\",\"_\"),\".\",\"_\"))","v":""}]
[10302,{"$f":"A$80","v":10300},{"$f":"C$80&\"[\"&B82&\"],\"","v":"[0],[10300],"},"学生信息上报",{"$f":"E$80&\"/\"&D82","v":"评估监测/学生信息上报"},"stu","MenuType.MENU",null,null,{"$f":"J$80&\"/\"&F82","v":"/exam-s/stu"},null,null,"MenuOpenType.COMPONENT",null,"true",null,20,"CommonStatus.ENABLE",null,{"$f":"\"            new SysMenu { Id = \"&A82&\", Pid = \"&B82&\", Pids = \"\"\"&C82&\"\"\", Name = \"\"\"&D82&\"\"\", Code = \"\"\"&F82&\"\"\", MenuType = \"&G82&\", Icon = \"\"\"&I82&\"\"\", Router = \"\"\"&J82&\"\"\", Component = \"\"\"&K82&\"\"\", Permission = \"\"\"&L82&\"\"\", OpenType = \"&M82&\", Visible = \"&O82&\", Sort = \"&Q82&\", Status = \"&R82&\" },\"","v":"            new SysMenu { Id = 10302, Pid = 10300, Pids = \"[0],[10300],\", Name = \"学生信息上报\", Code = \"stu\", MenuType = MenuType.MENU, Icon = \"\", Router = \"/exam-s/stu\", Component = \"\", Permission = \"\", OpenType = MenuOpenType.COMPONENT, Visible = true, Sort = 20, Status = CommonStatus.ENABLE },"},{"$f":"UPPER(SUBSTITUTE(SUBSTITUTE(L82,\"-\",\"_\"),\".\",\"_\"))","v":""}]
[10303,{"$f":"A$82","v":10302},{"$f":"C$82&\"[\"&B83&\"],\"","v":"[0],[10300],[10302],"},"添加",{"$f":"E$82&\"/\"&D83","v":"评估监测/学生信息上报/添加"},"add","MenuType.BUTTON",{"$nulls":4},{"$f":"F$80&\".\"&F$82&\".\"&F83","v":"exam-s.stu.add"},"MenuOpenType.NONE",null,"true",null,0,"CommonStatus.ENABLE",null,"            new SysMenu { Id = 10303, Pid = 10302, Pids = \"[0],[10300],[10302],\", Name = \"添加\", Code = \"add\", MenuType = MenuType.BUTTON, Icon = \"\", Router = \"\", Component = \"\", Permission = \"exam-s.stu.add\", OpenType = MenuOpenType.NONE, Visible = true, Sort = 0, Status = CommonStatus.ENABLE },","EXAM_S_STU_ADD"]
[10304,10302,"[0],[10300],[10302],","修改","评估监测/学生信息上报/修改","edit","MenuType.BUTTON",{"$nulls":4},"exam-s.stu.edit","MenuOpenType.NONE",null,"true",null,0,"CommonStatus.ENABLE",null,"            new SysMenu { Id = 10304, Pid = 10302, Pids = \"[0],[10300],[10302],\", Name = \"修改\", Code = \"edit\", MenuType = MenuType.BUTTON, Icon = \"\", Router = \"\", Component = \"\", Permission = \"exam-s.stu.edit\", OpenType = MenuOpenType.NONE, Visible = true, Sort = 0, Status = CommonStatus.ENABLE },","EXAM_S_STU_EDIT"]
[10305,10302,"[0],[10300],[10302],","删除","评估监测/学生信息上报/删除","del","MenuType.BUTTON",{"$nulls":4},"exam-s.stu.del","MenuOpenType.NONE",null,"true",null,0,"CommonStatus.ENABLE",null,"            new SysMenu { Id = 10305, Pid = 10302, Pids = \"[0],[10300],[10302],\", Name = \"删除\", Code = \"del\", MenuType = MenuType.BUTTON, Icon = \"\", Router = \"\", Component = \"\", Permission = \"exam-s.stu.del\", OpenType = MenuOpenType.NONE, Visible = true, Sort = 0, Status = CommonStatus.ENABLE },","EXAM_S_STU_DEL"]
[10306,10302,"[0],[10300],[10302],","提交","评估监测/学生信息上报/提交","submit","MenuType.BUTTON",{"$nulls":4},"exam-s.stu.submit","MenuOpenType.NONE",null,"true",null,0,"CommonStatus.ENABLE",null,"            new SysMenu { Id = 10306, Pid = 10302, Pids = \"[0],[10300],[10302],\", Name = \"提交\", Code = \"submit\", MenuType = MenuType.BUTTON, Icon = \"\", Router = \"\", Component = \"\", Permission = \"exam-s.stu.submit\", OpenType = MenuOpenType.NONE, Visible = true, Sort = 0, Status = CommonStatus.ENABLE },","EXAM_S_STU_SUBMIT"]
[10307,10302,"[0],[10300],[10302],","审核","评估监测/学生信息上报/审核","audit","MenuType.BUTTON",{"$nulls":4},"exam-s.stu.audit","MenuOpenType.NONE",null,"true",null,0,"CommonStatus.ENABLE",null,"            new SysMenu { Id = 10307, Pid = 10302, Pids = \"[0],[10300],[10302],\", Name = \"审核\", Code = \"audit\", MenuType = MenuType.BUTTON, Icon = \"\", Router = \"\", Component = \"\", Permission = \"exam-s.stu.audit\", OpenType = MenuOpenType.NONE, Visible = true, Sort = 0, Status = CommonStatus.ENABLE },","EXAM_S_STU_AUDIT"]
[10308,10302,"[0],[10300],[10302],","下载","评估监测/学生信息上报/下载","download","MenuType.BUTTON",{"$nulls":4},"exam-s.stu.download","MenuOpenType.NONE",null,"true",null,0,"CommonStatus.ENABLE",null,"            new SysMenu { Id = 10308, Pid = 10302, Pids = \"[0],[10300],[10302],\", Name = \"下载\", Code = \"download\", MenuType = MenuType.BUTTON, Icon = \"\", Router = \"\", Component = \"\", Permission = \"exam-s.stu.download\", OpenType = MenuOpenType.NONE, Visible = true, Sort = 0, Status = CommonStatus.ENABLE },","EXAM_S_STU_DOWNLOAD"]
[10309,{"$f":"A$80","v":10300},{"$f":"C$80&\"[\"&B89&\"],\"","v":"[0],[10300],"},"特殊学生上报",{"$f":"E$80&\"/\"&D89","v":"评估监测/特殊学生上报"},"sp-stu","MenuType.MENU",null,null,{"$f":"J$80&\"/\"&F89","v":"/exam-s/sp-stu"},null,null,"MenuOpenType.COMPONENT",null,"false",null,30,"CommonStatus.ENABLE",null,{"$f":"\"            new SysMenu { Id = \"&A89&\", Pid = \"&B89&\", Pids = \"\"\"&C89&\"\"\", Name = \"\"\"&D89&\"\"\", Code = \"\"\"&F89&\"\"\", MenuType = \"&G89&\", Icon = \"\"\"&I89&\"\"\", Router = \"\"\"&J89&\"\"\", Component = \"\"\"&K89&\"\"\", Permission = \"\"\"&L89&\"\"\", OpenType = \"&M89&\", Visible = \"&O89&\", Sort = \"&Q89&\", Status = \"&R89&\" },\"","v":"            new SysMenu { Id = 10309, Pid = 10300, Pids = \"[0],[10300],\", Name = \"特殊学生上报\", Code = \"sp-stu\", MenuType = MenuType.MENU, Icon = \"\", Router = \"/exam-s/sp-stu\", Component = \"\", Permission = \"\", OpenType = MenuOpenType.COMPONENT, Visible = false, Sort = 30, Status = CommonStatus.ENABLE },"},{"$f":"UPPER(SUBSTITUTE(SUBSTITUTE(L89,\"-\",\"_\"),\".\",\"_\"))","v":""}]
[10310,{"$f":"A$89","v":10309},{"$f":"C$89&\"[\"&B90&\"],\"","v":"[0],[10300],[10309],"},"添加",{"$f":"E$89&\"/\"&D90","v":"评估监测/特殊学生上报/添加"},"add","MenuType.BUTTON",{"$nulls":4},{"$f":"F$80&\".\"&F$89&\".\"&F90","v":"exam-s.sp-stu.add"},"MenuOpenType.NONE",null,"true",null,0,"CommonStatus.ENABLE",null,"            new SysMenu { Id = 10310, Pid = 10309, Pids = \"[0],[10300],[10309],\", Name = \"添加\", Code = \"add\", MenuType = MenuType.BUTTON, Icon = \"\", Router = \"\", Component = \"\", Permission = \"exam-s.sp-stu.add\", OpenType = MenuOpenType.NONE, Visible = true, Sort = 0, Status = CommonStatus.ENABLE },","EXAM_S_SP_STU_ADD"]
[10311,10309,"[0],[10300],[10309],","修改","评估监测/特殊学生上报/修改","edit","MenuType.BUTTON",{"$nulls":4},"exam-s.sp-stu.edit","MenuOpenType.NONE",null,"true",null,0,"CommonStatus.ENABLE",null,"            new SysMenu { Id = 10311, Pid = 10309, Pids = \"[0],[10300],[10309],\", Name = \"修改\", Code = \"edit\", MenuType = MenuType.BUTTON, Icon = \"\", Router = \"\", Component = \"\", Permission = \"exam-s.sp-stu.edit\", OpenType = MenuOpenType.NONE, Visible = true, Sort = 0, Status = CommonStatus.ENABLE },","EXAM_S_SP_STU_EDIT"]
[10312,10309,"[0],[10300],[10309],","删除","评估监测/特殊学生上报/删除","del","MenuType.BUTTON",{"$nulls":4},"exam-s.sp-stu.del","MenuOpenType.NONE",null,"true",null,0,"CommonStatus.ENABLE",null,"            new SysMenu { Id = 10312, Pid = 10309, Pids = \"[0],[10300],[10309],\", Name = \"删除\", Code = \"del\", MenuType = MenuType.BUTTON, Icon = \"\", Router = \"\", Component = \"\", Permission = \"exam-s.sp-stu.del\", OpenType = MenuOpenType.NONE, Visible = true, Sort = 0, Status = CommonStatus.ENABLE },","EXAM_S_SP_STU_DEL"]
[10313,10309,"[0],[10300],[10309],","提交","评估监测/特殊学生上报/提交","submit","MenuType.BUTTON",{"$nulls":4},"exam-s.sp-stu.submit","MenuOpenType.NONE",null,"true",null,0,"CommonStatus.ENABLE",null,"            new SysMenu { Id = 10313, Pid = 10309, Pids = \"[0],[10300],[10309],\", Name = \"提交\", Code = \"submit\", MenuType = MenuType.BUTTON, Icon = \"\", Router = \"\", Component = \"\", Permission = \"exam-s.sp-stu.submit\", OpenType = MenuOpenType.NONE, Visible = true, Sort = 0, Status = CommonStatus.ENABLE },","EXAM_S_SP_STU_SUBMIT"]
[10314,10309,"[0],[10300],[10309],","审核","评估监测/特殊学生上报/审核","audit","MenuType.BUTTON",{"$nulls":4},"exam-s.sp-stu.audit","MenuOpenType.NONE",null,"true",null,0,"CommonStatus.ENABLE",null,"            new SysMenu { Id = 10314, Pid = 10309, Pids = \"[0],[10300],[10309],\", Name = \"审核\", Code = \"audit\", MenuType = MenuType.BUTTON, Icon = \"\", Router = \"\", Component = \"\", Permission = \"exam-s.sp-stu.audit\", OpenType = MenuOpenType.NONE, Visible = true, Sort = 0, Status = CommonStatus.ENABLE },","EXAM_S_SP_STU_AUDIT"]
[10315,10309,"[0],[10300],[10309],","下载","评估监测/特殊学生上报/下载","download","MenuType.BUTTON",{"$nulls":4},"exam-s.sp-stu.download","MenuOpenType.NONE",null,"true",null,0,"CommonStatus.ENABLE",null,"            new SysMenu { Id = 10315, Pid = 10309, Pids = \"[0],[10300],[10309],\", Name = \"下载\", Code = \"download\", MenuType = MenuType.BUTTON, Icon = \"\", Router = \"\", Component = \"\", Permission = \"exam-s.sp-stu.download\", OpenType = MenuOpenType.NONE, Visible = true, Sort = 0, Status = CommonStatus.ENABLE },",{"$f":"UPPER(SUBSTITUTE(SUBSTITUTE(L95,\"-\",\"_\"),\".\",\"_\"))","v":"EXAM_S_SP_STU_DOWNLOAD"}]
[10316,{"$f":"A$80","v":10300},{"$f":"C$80&\"[\"&B96&\"],\"","v":"[0],[10300],"},"教师信息上报",{"$f":"E$80&\"/\"&D96","v":"评估监测/教师信息上报"},"teacher","MenuType.MENU",null,null,{"$f":"J$80&\"/\"&F96","v":"/exam-s/teacher"},null,null,"MenuOpenType.COMPONENT",null,"true",null,40,"CommonStatus.ENABLE",null,"            new SysMenu { Id = 10316, Pid = 10300, Pids = \"[0],[10300],\", Name = \"教师信息上报\", Code = \"teacher\", MenuType = MenuType.MENU, Icon = \"\", Router = \"/exam-s/teacher\", Component = \"\", Permission = \"\", OpenType = MenuOpenType.COMPONENT, Visible = true, Sort = 40, Status = CommonStatus.ENABLE },",""]
[10317,{"$f":"A$96","v":10316},{"$f":"C$96&\"[\"&B97&\"],\"","v":"[0],[10300],[10316],"},"添加",{"$f":"E$96&\"/\"&D97","v":"评估监测/教师信息上报/添加"},"add","MenuType.BUTTON",{"$nulls":4},{"$f":"F$80&\".\"&F$96&\".\"&F97","v":"exam-s.teacher.add"},"MenuOpenType.NONE",null,"true",null,0,"CommonStatus.ENABLE",null,"            new SysMenu { Id = 10317, Pid = 10316, Pids = \"[0],[10300],[10316],\", Name = \"添加\", Code = \"add\", MenuType = MenuType.BUTTON, Icon = \"\", Router = \"\", Component = \"\", Permission = \"exam-s.teacher.add\", OpenType = MenuOpenType.NONE, Visible = true, Sort = 0, Status = CommonStatus.ENABLE },","EXAM_S_TEACHER_ADD"]
[10318,10316,"[0],[10300],[10316],","修改","评估监测/教师信息上报/修改","edit","MenuType.BUTTON",{"$nulls":4},"exam-s.teacher.edit","MenuOpenType.NONE",null,"true",null,0,"CommonStatus.ENABLE",null,"            new SysMenu { Id = 10318, Pid = 10316, Pids = \"[0],[10300],[10316],\", Name = \"修改\", Code = \"edit\", MenuType = MenuType.BUTTON, Icon = \"\", Router = \"\", Component = \"\", Permission = \"exam-s.teacher.edit\", OpenType = MenuOpenType.NONE, Visible = true, Sort = 0, Status = CommonStatus.ENABLE },","EXAM_S_TEACHER_EDIT"]
[10319,10316,"[0],[10300],[10316],","删除","评估监测/教师信息上报/删除","del","MenuType.BUTTON",{"$nulls":4},"exam-s.teacher.del","MenuOpenType.NONE",null,"true",null,0,"CommonStatus.ENABLE",null,"            new SysMenu { Id = 10319, Pid = 10316, Pids = \"[0],[10300],[10316],\", Name = \"删除\", Code = \"del\", MenuType = MenuType.BUTTON, Icon = \"\", Router = \"\", Component = \"\", Permission = \"exam-s.teacher.del\", OpenType = MenuOpenType.NONE, Visible = true, Sort = 0, Status = CommonStatus.ENABLE },","EXAM_S_TEACHER_DEL"]
[10320,10316,"[0],[10300],[10316],","提交","评估监测/教师信息上报/提交","submit","MenuType.BUTTON",{"$nulls":4},"exam-s.teacher.submit","MenuOpenType.NONE",null,"true",null,0,"CommonStatus.ENABLE",null,"            new SysMenu { Id = 10320, Pid = 10316, Pids = \"[0],[10300],[10316],\", Name = \"提交\", Code = \"submit\", MenuType = MenuType.BUTTON, Icon = \"\", Router = \"\", Component = \"\", Permission = \"exam-s.teacher.submit\", OpenType = MenuOpenType.NONE, Visible = true, Sort = 0, Status = CommonStatus.ENABLE },","EXAM_S_TEACHER_SUBMIT"]
[10321,10316,"[0],[10300],[10316],","审核","评估监测/教师信息上报/审核","audit","MenuType.BUTTON",{"$nulls":4},"exam-s.teacher.audit","MenuOpenType.NONE",null,"true",null,0,"CommonStatus.ENABLE",null,"            new SysMenu { Id = 10321, Pid = 10316, Pids = \"[0],[10300],[10316],\", Name = \"审核\", Code = \"audit\", MenuType = MenuType.BUTTON, Icon = \"\", Router = \"\", Component = \"\", Permission = \"exam-s.teacher.audit\", OpenType = MenuOpenType.NONE, Visible = true, Sort = 0, Status = CommonStatus.ENABLE },","EXAM_S_TEACHER_AUDIT"]
[10322,10316,"[0],[10300],[10316],","下载","评估监测/教师信息上报/下载","download","MenuType.BUTTON",{"$nulls":4},"exam-s.teacher.download","MenuOpenType.NONE",null,"true",null,0,"CommonStatus.ENABLE",null,"            new SysMenu { Id = 10322, Pid = 10316, Pids = \"[0],[10300],[10316],\", Name = \"下载\", Code = \"download\", MenuType = MenuType.BUTTON, Icon = \"\", Router = \"\", Component = \"\", Permission = \"exam-s.teacher.download\", OpenType = MenuOpenType.NONE, Visible = true, Sort = 0, Status = CommonStatus.ENABLE },","EXAM_S_TEACHER_DOWNLOAD"]
[10323,{"$f":"A$80","v":10300},{"$f":"C$80&\"[\"&B103&\"],\"","v":"[0],[10300],"},"教师学科上报",{"$f":"E$80&\"/\"&D103","v":"评估监测/教师学科上报"},"t-course","MenuType.MENU",null,null,{"$f":"J$80&\"/\"&F103","v":"/exam-s/t-course"},null,null,"MenuOpenType.COMPONENT",null,"false",null,40,"CommonStatus.ENABLE",null,{"$f":"\"            new SysMenu { Id = \"&A103&\", Pid = \"&B103&\", Pids = \"\"\"&C103&\"\"\", Name = \"\"\"&D103&\"\"\", Code = \"\"\"&F103&\"\"\", MenuType = \"&G103&\", Icon = \"\"\"&I103&\"\"\", Router = \"\"\"&J103&\"\"\", Component = \"\"\"&K103&\"\"\", Permission = \"\"\"&L103&\"\"\", OpenType = \"&M103&\", Visible = \"&O103&\", Sort = \"&Q103&\", Status = \"&R103&\" },\"","v":"            new SysMenu { Id = 10323, Pid = 10300, Pids = \"[0],[10300],\", Name = \"教师学科上报\", Code = \"t-course\", MenuType = MenuType.MENU, Icon = \"\", Router = \"/exam-s/t-course\", Component = \"\", Permission = \"\", OpenType = MenuOpenType.COMPONENT, Visible = false, Sort = 40, Status = CommonStatus.ENABLE },"},{"$f":"UPPER(SUBSTITUTE(SUBSTITUTE(L103,\"-\",\"_\"),\".\",\"_\"))","v":""}]
[10324,{"$f":"A$103","v":10323},{"$f":"C$103&\"[\"&B104&\"],\"","v":"[0],[10300],[10323],"},"添加",{"$f":"E$103&\"/\"&D104","v":"评估监测/教师学科上报/添加"},"add","MenuType.BUTTON",{"$nulls":4},{"$f":"F$80&\".\"&F$103&\".\"&F104","v":"exam-s.t-course.add"},"MenuOpenType.NONE",null,"true",null,0,"CommonStatus.ENABLE",null,"            new SysMenu { Id = 10324, Pid = 10323, Pids = \"[0],[10300],[10323],\", Name = \"添加\", Code = \"add\", MenuType = MenuType.BUTTON, Icon = \"\", Router = \"\", Component = \"\", Permission = \"exam-s.t-course.add\", OpenType = MenuOpenType.NONE, Visible = true, Sort = 0, Status = CommonStatus.ENABLE },","EXAM_S_T_COURSE_ADD"]
[10325,10323,"[0],[10300],[10323],","修改","评估监测/教师学科上报/修改","edit","MenuType.BUTTON",{"$nulls":4},"exam-s.t-course.edit","MenuOpenType.NONE",null,"true",null,0,"CommonStatus.ENABLE",null,"            new SysMenu { Id = 10325, Pid = 10323, Pids = \"[0],[10300],[10323],\", Name = \"修改\", Code = \"edit\", MenuType = MenuType.BUTTON, Icon = \"\", Router = \"\", Component = \"\", Permission = \"exam-s.t-course.edit\", OpenType = MenuOpenType.NONE, Visible = true, Sort = 0, Status = CommonStatus.ENABLE },","EXAM_S_T_COURSE_EDIT"]
[10326,10323,"[0],[10300],[10323],","删除","评估监测/教师学科上报/删除","del","MenuType.BUTTON",{"$nulls":4},"exam-s.t-course.del","MenuOpenType.NONE",null,"true",null,0,"CommonStatus.ENABLE",null,"            new SysMenu { Id = 10326, Pid = 10323, Pids = \"[0],[10300],[10323],\", Name = \"删除\", Code = \"del\", MenuType = MenuType.BUTTON, Icon = \"\", Router = \"\", Component = \"\", Permission = \"exam-s.t-course.del\", OpenType = MenuOpenType.NONE, Visible = true, Sort = 0, Status = CommonStatus.ENABLE },","EXAM_S_T_COURSE_DEL"]
[10327,10323,"[0],[10300],[10323],","提交","评估监测/教师学科上报/提交","submit","MenuType.BUTTON",{"$nulls":4},"exam-s.t-course.submit","MenuOpenType.NONE",null,"true",null,0,"CommonStatus.ENABLE",null,"            new SysMenu { Id = 10327, Pid = 10323, Pids = \"[0],[10300],[10323],\", Name = \"提交\", Code = \"submit\", MenuType = MenuType.BUTTON, Icon = \"\", Router = \"\", Component = \"\", Permission = \"exam-s.t-course.submit\", OpenType = MenuOpenType.NONE, Visible = true, Sort = 0, Status = CommonStatus.ENABLE },","EXAM_S_T_COURSE_SUBMIT"]
[10328,10323,"[0],[10300],[10323],","审核","评估监测/教师学科上报/审核","audit","MenuType.BUTTON",{"$nulls":4},"exam-s.t-course.audit","MenuOpenType.NONE",null,"true",null,0,"CommonStatus.ENABLE",null,"            new SysMenu { Id = 10328, Pid = 10323, Pids = \"[0],[10300],[10323],\", Name = \"审核\", Code = \"audit\", MenuType = MenuType.BUTTON, Icon = \"\", Router = \"\", Component = \"\", Permission = \"exam-s.t-course.audit\", OpenType = MenuOpenType.NONE, Visible = true, Sort = 0, Status = CommonStatus.ENABLE },","EXAM_S_T_COURSE_AUDIT"]
[10329,10323,"[0],[10300],[10323],","下载","评估监测/教师学科上报/下载","download","MenuType.BUTTON",{"$nulls":4},"exam-s.t-course.download","MenuOpenType.NONE",null,"true",null,0,"CommonStatus.ENABLE",null,"            new SysMenu { Id = 10329, Pid = 10323, Pids = \"[0],[10300],[10323],\", Name = \"下载\", Code = \"download\", MenuType = MenuType.BUTTON, Icon = \"\", Router = \"\", Component = \"\", Permission = \"exam-s.t-course.download\", OpenType = MenuOpenType.NONE, Visible = true, Sort = 0, Status = CommonStatus.ENABLE },","EXAM_S_T_COURSE_DOWNLOAD"]
[10330,{"$f":"A$80","v":10300},{"$f":"C$80&\"[\"&B110&\"],\"","v":"[0],[10300],"},"监测抽样下载",{"$f":"E$80&\"/\"&D110","v":"评估监测/监测抽样下载"},"sample","MenuType.MENU",null,null,{"$f":"J$80&\"/\"&F110","v":"/exam-s/sample"},null,null,"MenuOpenType.COMPONENT",null,"false",null,50,"CommonStatus.ENABLE",null,"            new SysMenu { Id = 10330, Pid = 10300, Pids = \"[0],[10300],\", Name = \"监测抽样下载\", Code = \"sample\", MenuType = MenuType.MENU, Icon = \"\", Router = \"/exam-s/sample\", Component = \"\", Permission = \"\", OpenType = MenuOpenType.COMPONENT, Visible = false, Sort = 50, Status = CommonStatus.ENABLE },",""]
[10331,{"$f":"A$110","v":10330},{"$f":"C$110&\"[\"&B111&\"],\"","v":"[0],[10300],[10330],"},"下载",{"$f":"E$110&\"/\"&D111","v":"评估监测/监测抽样下载/下载"},"download","MenuType.BUTTON",{"$nulls":4},{"$f":"F$80&\".\"&F$110&\".\"&F111","v":"exam-s.sample.download"},"MenuOpenType.NONE",null,"true",null,0,"CommonStatus.ENABLE",null,"            new SysMenu { Id = 10331, Pid = 10330, Pids = \"[0],[10300],[10330],\", Name = \"下载\", Code = \"download\", MenuType = MenuType.BUTTON, Icon = \"\", Router = \"\", Component = \"\", Permission = \"exam-s.sample.download\", OpenType = MenuOpenType.NONE, Visible = true, Sort = 0, Status = CommonStatus.ENABLE },","EXAM_S_SAMPLE_DOWNLOAD"]
[10332,{"$f":"A$80","v":10300},{"$f":"C$80&\"[\"&B112&\"],\"","v":"[0],[10300],"},"缺测替补上报",{"$f":"E$80&\"/\"&D112","v":"评估监测/缺测替补上报"},"absent","MenuType.MENU",null,null,{"$f":"J$80&\"/\"&F112","v":"/exam-s/absent"},null,null,"MenuOpenType.COMPONENT",null,"false",null,60,"CommonStatus.ENABLE",null,{"$f":"\"            new SysMenu { Id = \"&A112&\", Pid = \"&B112&\", Pids = \"\"\"&C112&\"\"\", Name = \"\"\"&D112&\"\"\", Code = \"\"\"&F112&\"\"\", MenuType = \"&G112&\", Icon = \"\"\"&I112&\"\"\", Router = \"\"\"&J112&\"\"\", Component = \"\"\"&K112&\"\"\", Permission = \"\"\"&L112&\"\"\", OpenType = \"&M112&\", Visible = \"&O112&\", Sort = \"&Q112&\", Status = \"&R112&\" },\"","v":"            new SysMenu { Id = 10332, Pid = 10300, Pids = \"[0],[10300],\", Name = \"缺测替补上报\", Code = \"absent\", MenuType = MenuType.MENU, Icon = \"\", Router = \"/exam-s/absent\", Component = \"\", Permission = \"\", OpenType = MenuOpenType.COMPONENT, Visible = false, Sort = 60, Status = CommonStatus.ENABLE },"},{"$f":"UPPER(SUBSTITUTE(SUBSTITUTE(L112,\"-\",\"_\"),\".\",\"_\"))","v":""}]
[10333,{"$f":"A$112","v":10332},{"$f":"C$112&\"[\"&B113&\"],\"","v":"[0],[10300],[10332],"},"添加",{"$f":"E$112&\"/\"&D113","v":"评估监测/缺测替补上报/添加"},"add","MenuType.BUTTON",{"$nulls":4},{"$f":"F$80&\".\"&F$112&\".\"&F113","v":"exam-s.absent.add"},"MenuOpenType.NONE",null,"true",null,0,"CommonStatus.ENABLE",null,"            new SysMenu { Id = 10333, Pid = 10332, Pids = \"[0],[10300],[10332],\", Name = \"添加\", Code = \"add\", MenuType = MenuType.BUTTON, Icon = \"\", Router = \"\", Component = \"\", Permission = \"exam-s.absent.add\", OpenType = MenuOpenType.NONE, Visible = true, Sort = 0, Status = CommonStatus.ENABLE },","EXAM_S_ABSENT_ADD"]
[10334,10332,"[0],[10300],[10332],","修改","评估监测/缺测替补上报/修改","edit","MenuType.BUTTON",{"$nulls":4},"exam-s.absent.edit","MenuOpenType.NONE",null,"true",null,0,"CommonStatus.ENABLE",null,"            new SysMenu { Id = 10334, Pid = 10332, Pids = \"[0],[10300],[10332],\", Name = \"修改\", Code = \"edit\", MenuType = MenuType.BUTTON, Icon = \"\", Router = \"\", Component = \"\", Permission = \"exam-s.absent.edit\", OpenType = MenuOpenType.NONE, Visible = true, Sort = 0, Status = CommonStatus.ENABLE },","EXAM_S_ABSENT_EDIT"]
[10335,10332,"[0],[10300],[10332],","删除","评估监测/缺测替补上报/删除","del","MenuType.BUTTON",{"$nulls":4},"exam-s.absent.del","MenuOpenType.NONE",null,"true",null,0,"CommonStatus.ENABLE",null,"            new SysMenu { Id = 10335, Pid = 10332, Pids = \"[0],[10300],[10332],\", Name = \"删除\", Code = \"del\", MenuType = MenuType.BUTTON, Icon = \"\", Router = \"\", Component = \"\", Permission = \"exam-s.absent.del\", OpenType = MenuOpenType.NONE, Visible = true, Sort = 0, Status = CommonStatus.ENABLE },","EXAM_S_ABSENT_DEL"]
[10336,10332,"[0],[10300],[10332],","提交","评估监测/缺测替补上报/提交","submit","MenuType.BUTTON",{"$nulls":4},"exam-s.absent.submit","MenuOpenType.NONE",null,"true",null,0,"CommonStatus.ENABLE",null,"            new SysMenu { Id = 10336, Pid = 10332, Pids = \"[0],[10300],[10332],\", Name = \"提交\", Code = \"submit\", MenuType = MenuType.BUTTON, Icon = \"\", Router = \"\", Component = \"\", Permission = \"exam-s.absent.submit\", OpenType = MenuOpenType.NONE, Visible = true, Sort = 0, Status = CommonStatus.ENABLE },","EXAM_S_ABSENT_SUBMIT"]
[10337,10332,"[0],[10300],[10332],","审核","评估监测/缺测替补上报/审核","audit","MenuType.BUTTON",{"$nulls":4},"exam-s.absent.audit","MenuOpenType.NONE",null,"true",null,0,"CommonStatus.ENABLE",null,"            new SysMenu { Id = 10337, Pid = 10332, Pids = \"[0],[10300],[10332],\", Name = \"审核\", Code = \"audit\", MenuType = MenuType.BUTTON, Icon = \"\", Router = \"\", Component = \"\", Permission = \"exam-s.absent.audit\", OpenType = MenuOpenType.NONE, Visible = true, Sort = 0, Status = CommonStatus.ENABLE },","EXAM_S_ABSENT_AUDIT"]
[10338,10332,"[0],[10300],[10332],","下载","评估监测/缺测替补上报/下载","download","MenuType.BUTTON",{"$nulls":4},"exam-s.absent.download","MenuOpenType.NONE",null,"true",null,0,"CommonStatus.ENABLE",null,{"$f":"\"            new SysMenu { Id = \"&A118&\", Pid = \"&B118&\", Pids = \"\"\"&C118&\"\"\", Name = \"\"\"&D118&\"\"\", Code = \"\"\"&F118&\"\"\", MenuType = \"&G118&\", Icon = \"\"\"&I118&\"\"\", Router = \"\"\"&J118&\"\"\", Component = \"\"\"&K118&\"\"\", Permission = \"\"\"&L118&\"\"\", OpenType = \"&M118&\", Visible = \"&O118&\", Sort = \"&Q118&\", Status = \"&R118&\" },\"","v":"            new SysMenu { Id = 10338, Pid = 10332, Pids = \"[0],[10300],[10332],\", Name = \"下载\", Code = \"download\", MenuType = MenuType.BUTTON, Icon = \"\", Router = \"\", Component = \"\", Permission = \"exam-s.absent.download\", OpenType = MenuOpenType.NONE, Visible = true, Sort = 0, Status = CommonStatus.ENABLE },"},{"$f":"UPPER(SUBSTITUTE(SUBSTITUTE(L118,\"-\",\"_\"),\".\",\"_\"))","v":"EXAM_S_ABSENT_DOWNLOAD"}]
[10339,{"$f":"A$80","v":10300},{"$f":"C$80&\"[\"&B119&\"],\"","v":"[0],[10300],"},"校测数据上报",{"$f":"E$80&\"/\"&D119","v":"评估监测/校测数据上报"},"self-exam","MenuType.MENU",null,null,{"$f":"J$80&\"/\"&F119","v":"/exam-s/self-exam"},null,null,"MenuOpenType.COMPONENT",null,"false",null,70,"CommonStatus.ENABLE",null,"            new SysMenu { Id = 10339, Pid = 10300, Pids = \"[0],[10300],\", Name = \"校测数据上报\", Code = \"self-exam\", MenuType = MenuType.MENU, Icon = \"\", Router = \"/exam-s/self-exam\", Component = \"\", Permission = \"\", OpenType = MenuOpenType.COMPONENT, Visible = false, Sort = 70, Status = CommonStatus.ENABLE },",""]
[10340,{"$f":"A$119","v":10339},{"$f":"C$119&\"[\"&B120&\"],\"","v":"[0],[10300],[10339],"},"添加",{"$f":"E$119&\"/\"&D120","v":"评估监测/校测数据上报/添加"},"add","MenuType.BUTTON",{"$nulls":4},{"$f":"F$80&\".\"&F$119&\".\"&F120","v":"exam-s.self-exam.add"},"MenuOpenType.NONE",null,"true",null,0,"CommonStatus.ENABLE",null,"            new SysMenu { Id = 10340, Pid = 10339, Pids = \"[0],[10300],[10339],\", Name = \"添加\", Code = \"add\", MenuType = MenuType.BUTTON, Icon = \"\", Router = \"\", Component = \"\", Permission = \"exam-s.self-exam.add\", OpenType = MenuOpenType.NONE, Visible = true, Sort = 0, Status = CommonStatus.ENABLE },","EXAM_S_SELF_EXAM_ADD"]
[10341,10339,"[0],[10300],[10339],","修改","评估监测/校测数据上报/修改","edit","MenuType.BUTTON",{"$nulls":4},"exam-s.self-exam.edit","MenuOpenType.NONE",null,"true",null,0,"CommonStatus.ENABLE",null,"            new SysMenu { Id = 10341, Pid = 10339, Pids = \"[0],[10300],[10339],\", Name = \"修改\", Code = \"edit\", MenuType = MenuType.BUTTON, Icon = \"\", Router = \"\", Component = \"\", Permission = \"exam-s.self-exam.edit\", OpenType = MenuOpenType.NONE, Visible = true, Sort = 0, Status = CommonStatus.ENABLE },","EXAM_S_SELF_EXAM_EDIT"]
[10342,10339,"[0],[10300],[10339],","删除","评估监测/校测数据上报/删除","del","MenuType.BUTTON",{"$nulls":4},"exam-s.self-exam.del","MenuOpenType.NONE",null,"true",null,0,"CommonStatus.ENABLE",null,"            new SysMenu { Id = 10342, Pid = 10339, Pids = \"[0],[10300],[10339],\", Name = \"删除\", Code = \"del\", MenuType = MenuType.BUTTON, Icon = \"\", Router = \"\", Component = \"\", Permission = \"exam-s.self-exam.del\", OpenType = MenuOpenType.NONE, Visible = true, Sort = 0, Status = CommonStatus.ENABLE },","EXAM_S_SELF_EXAM_DEL"]
[10343,10339,"[0],[10300],[10339],","提交","评估监测/校测数据上报/提交","submit","MenuType.BUTTON",{"$nulls":4},"exam-s.self-exam.submit","MenuOpenType.NONE",null,"true",null,0,"CommonStatus.ENABLE",null,"            new SysMenu { Id = 10343, Pid = 10339, Pids = \"[0],[10300],[10339],\", Name = \"提交\", Code = \"submit\", MenuType = MenuType.BUTTON, Icon = \"\", Router = \"\", Component = \"\", Permission = \"exam-s.self-exam.submit\", OpenType = MenuOpenType.NONE, Visible = true, Sort = 0, Status = CommonStatus.ENABLE },","EXAM_S_SELF_EXAM_SUBMIT"]
[10344,10339,"[0],[10300],[10339],","审核","评估监测/校测数据上报/审核","audit","MenuType.BUTTON",{"$nulls":4},"exam-s.self-exam.audit","MenuOpenType.NONE",null,"true",null,0,"CommonStatus.ENABLE",null,"            new SysMenu { Id = 10344, Pid = 10339, Pids = \"[0],[10300],[10339],\", Name = \"审核\", Code = \"audit\", MenuType = MenuType.BUTTON, Icon = \"\", Router = \"\", Component = \"\", Permission = \"exam-s.self-exam.audit\", OpenType = MenuOpenType.NONE, Visible = true, Sort = 0, Status = CommonStatus.ENABLE },","EXAM_S_SELF_EXAM_AUDIT"]
[10345,10339,"[0],[10300],[10339],","下载","评估监测/校测数据上报/下载","download","MenuType.BUTTON",{"$nulls":4},"exam-s.self-exam.download","MenuOpenType.NONE",null,"true",null,0,"CommonStatus.ENABLE",null,"            new SysMenu { Id = 10345, Pid = 10339, Pids = \"[0],[10300],[10339],\", Name = \"下载\", Code = \"download\", MenuType = MenuType.BUTTON, Icon = \"\", Router = \"\", Component = \"\", Permission = \"exam-s.self-exam.download\", OpenType = MenuOpenType.NONE, Visible = true, Sort = 0, Status = CommonStatus.ENABLE },","EXAM_S_SELF_EXAM_DOWNLOAD"]
[10346,{"$f":"A$80","v":10300},{"$f":"C$80&\"[\"&B126&\"],\"","v":"[0],[10300],"},"监测结果下载",{"$f":"E$80&\"/\"&D126","v":"评估监测/监测结果下载"},"result","MenuType.MENU",null,null,{"$f":"J$80&\"/\"&F126","v":"/exam-s/result"},null,null,"MenuOpenType.COMPONENT",null,"false",null,80,"CommonStatus.ENABLE",null,"            new SysMenu { Id = 10346, Pid = 10300, Pids = \"[0],[10300],\", Name = \"监测结果下载\", Code = \"result\", MenuType = MenuType.MENU, Icon = \"\", Router = \"/exam-s/result\", Component = \"\", Permission = \"\", OpenType = MenuOpenType.COMPONENT, Visible = false, Sort = 80, Status = CommonStatus.ENABLE },",""]
[10347,{"$f":"A$126","v":10346},{"$f":"C$126&\"[\"&B127&\"],\"","v":"[0],[10300],[10346],"},"下载",{"$f":"E$126&\"/\"&D127","v":"评估监测/监测结果下载/下载"},"download","MenuType.BUTTON",{"$nulls":4},{"$f":"F$80&\".\"&F$126&\".\"&F127","v":"exam-s.result.download"},"MenuOpenType.NONE",null,"true",null,0,"CommonStatus.ENABLE",null,"            new SysMenu { Id = 10347, Pid = 10346, Pids = \"[0],[10300],[10346],\", Name = \"下载\", Code = \"download\", MenuType = MenuType.BUTTON, Icon = \"\", Router = \"\", Component = \"\", Permission = \"exam-s.result.download\", OpenType = MenuOpenType.NONE, Visible = true, Sort = 0, Status = CommonStatus.ENABLE },","EXAM_S_RESULT_DOWNLOAD"]
[]
[18000,0,{"$f":"\"[\"&B129&\"],\"","v":"[0],"},"基础数据",{"$f":"D129","v":"基础数据"},"bd","MenuType.FOLDER",null,"form",{"$f":"\"/\"&F129","v":"/bd"},null,null,"MenuOpenType.NONE",null,"true",null,{"$f":"A129","v":18000},"CommonStatus.ENABLE",null,{"$f":"\"            new SysMenu { Id = \"&A129&\", Pid = \"&B129&\", Pids = \"\"\"&C129&\"\"\", Name = \"\"\"&D129&\"\"\", Code = \"\"\"&F129&\"\"\", MenuType = \"&G129&\", Icon = \"\"\"&I129&\"\"\", Router = \"\"\"&J129&\"\"\", Component = \"\"\"&K129&\"\"\", Permission = \"\"\"&L129&\"\"\", OpenType = \"&M129&\", Visible = \"&O129&\", Sort = \"&Q129&\", Status = \"&R129&\" },\"","v":"            new SysMenu { Id = 18000, Pid = 0, Pids = \"[0],\", Name = \"基础数据\", Code = \"bd\", MenuType = MenuType.FOLDER, Icon = \"form\", Router = \"/bd\", Component = \"\", Permission = \"\", OpenType = MenuOpenType.NONE, Visible = true, Sort = 18000, Status = CommonStatus.ENABLE },"},{"$f":"UPPER(SUBSTITUTE(SUBSTITUTE(L129,\"-\",\"_\"),\".\",\"_\"))","v":""}]
[18001,{"$f":"A$129","v":18000},{"$f":"C$129&\"[\"&B130&\"],\"","v":"[0],[18000],"},"年级",{"$f":"E$129&\"/\"&D130","v":"基础数据/年级"},"grade","MenuType.MENU",null,null,{"$f":"J$129&\"/\"&F130","v":"/bd/grade"},null,null,"MenuOpenType.COMPONENT",null,"true",null,10,"CommonStatus.ENABLE",null,{"$f":"\"            new SysMenu { Id = \"&A130&\", Pid = \"&B130&\", Pids = \"\"\"&C130&\"\"\", Name = \"\"\"&D130&\"\"\", Code = \"\"\"&F130&\"\"\", MenuType = \"&G130&\", Icon = \"\"\"&I130&\"\"\", Router = \"\"\"&J130&\"\"\", Component = \"\"\"&K130&\"\"\", Permission = \"\"\"&L130&\"\"\", OpenType = \"&M130&\", Visible = \"&O130&\", Sort = \"&Q130&\", Status = \"&R130&\" },\"","v":"            new SysMenu { Id = 18001, Pid = 18000, Pids = \"[0],[18000],\", Name = \"年级\", Code = \"grade\", MenuType = MenuType.MENU, Icon = \"\", Router = \"/bd/grade\", Component = \"\", Permission = \"\", OpenType = MenuOpenType.COMPONENT, Visible = true, Sort = 10, Status = CommonStatus.ENABLE },"},""]
[18002,{"$f":"A$130","v":18001},{"$f":"C$130&\"[\"&B131&\"],\"","v":"[0],[18000],[18001],"},"添加",{"$f":"E$130&\"/\"&D131","v":"基础数据/年级/添加"},"add","MenuType.BUTTON",{"$nulls":4},{"$f":"F$129&\".\"&F$130&\".\"&F131","v":"bd.grade.add"},"MenuOpenType.NONE",null,"true",null,0,"CommonStatus.ENABLE",null,"            new SysMenu { Id = 18002, Pid = 18001, Pids = \"[0],[18000],[18001],\", Name = \"添加\", Code = \"add\", MenuType = MenuType.BUTTON, Icon = \"\", Router = \"\", Component = \"\", Permission = \"bd.grade.add\", OpenType = MenuOpenType.NONE, Visible = true, Sort = 0, Status = CommonStatus.ENABLE },","BD_GRADE_ADD"]
[18003,18001,"[0],[18000],[18001],","修改","基础数据/年级/修改","edit","MenuType.BUTTON",{"$nulls":4},"bd.grade.edit","MenuOpenType.NONE",null,"true",null,0,"CommonStatus.ENABLE",null,"            new SysMenu { Id = 18003, Pid = 18001, Pids = \"[0],[18000],[18001],\", Name = \"修改\", Code = \"edit\", MenuType = MenuType.BUTTON, Icon = \"\", Router = \"\", Component = \"\", Permission = \"bd.grade.edit\", OpenType = MenuOpenType.NONE, Visible = true, Sort = 0, Status = CommonStatus.ENABLE },","BD_GRADE_EDIT"]
[18004,18001,"[0],[18000],[18001],","删除","基础数据/年级/删除","del","MenuType.BUTTON",{"$nulls":4},"bd.grade.del","MenuOpenType.NONE",null,"true",null,0,"CommonStatus.ENABLE",null,"            new SysMenu { Id = 18004, Pid = 18001, Pids = \"[0],[18000],[18001],\", Name = \"删除\", Code = \"del\", MenuType = MenuType.BUTTON, Icon = \"\", Router = \"\", Component = \"\", Permission = \"bd.grade.del\", OpenType = MenuOpenType.NONE, Visible = true, Sort = 0, Status = CommonStatus.ENABLE },","BD_GRADE_DEL"]
[18005,{"$f":"A$129","v":18000},{"$f":"C$129&\"[\"&B134&\"],\"","v":"[0],[18000],"},"学科",{"$f":"E$129&\"/\"&D134","v":"基础数据/学科"},"course","MenuType.MENU",null,null,{"$f":"J$129&\"/\"&F134","v":"/bd/course"},null,null,"MenuOpenType.COMPONENT",null,"true",null,20,"CommonStatus.ENABLE",null,"            new SysMenu { Id = 18005, Pid = 18000, Pids = \"[0],[18000],\", Name = \"学科\", Code = \"course\", MenuType = MenuType.MENU, Icon = \"\", Router = \"/bd/course\", Component = \"\", Permission = \"\", OpenType = MenuOpenType.COMPONENT, Visible = true, Sort = 20, Status = CommonStatus.ENABLE },",""]
[18006,{"$f":"A$134","v":18005},{"$f":"C$134&\"[\"&B135&\"],\"","v":"[0],[18000],[18005],"},"添加",{"$f":"E$134&\"/\"&D135","v":"基础数据/学科/添加"},"add","MenuType.BUTTON",{"$nulls":4},{"$f":"F$129&\".\"&F$134&\".\"&F135","v":"bd.course.add"},"MenuOpenType.NONE",null,"true",null,0,"CommonStatus.ENABLE",null,"            new SysMenu { Id = 18006, Pid = 18005, Pids = \"[0],[18000],[18005],\", Name = \"添加\", Code = \"add\", MenuType = MenuType.BUTTON, Icon = \"\", Router = \"\", Component = \"\", Permission = \"bd.course.add\", OpenType = MenuOpenType.NONE, Visible = true, Sort = 0, Status = CommonStatus.ENABLE },","BD_COURSE_ADD"]
[18007,{"$f":"A$134","v":18005},{"$f":"C$134&\"[\"&B136&\"],\"","v":"[0],[18000],[18005],"},"修改",{"$f":"E$134&\"/\"&D136","v":"基础数据/学科/修改"},"edit","MenuType.BUTTON",{"$nulls":4},{"$f":"F$129&\".\"&F$134&\".\"&F136","v":"bd.course.edit"},"MenuOpenType.NONE",null,"true",null,0,"CommonStatus.ENABLE",null,"            new SysMenu { Id = 18007, Pid = 18005, Pids = \"[0],[18000],[18005],\", Name = \"修改\", Code = \"edit\", MenuType = MenuType.BUTTON, Icon = \"\", Router = \"\", Component = \"\", Permission = \"bd.course.edit\", OpenType = MenuOpenType.NONE, Visible = true, Sort = 0, Status = CommonStatus.ENABLE },","BD_COURSE_EDIT"]
[18008,{"$f":"A$134","v":18005},{"$f":"C$134&\"[\"&B137&\"],\"","v":"[0],[18000],[18005],"},"删除",{"$f":"E$134&\"/\"&D137","v":"基础数据/学科/删除"},"del","MenuType.BUTTON",{"$nulls":4},{"$f":"F$129&\".\"&F$134&\".\"&F137","v":"bd.course.del"},"MenuOpenType.NONE",null,"true",null,0,"CommonStatus.ENABLE",null,"            new SysMenu { Id = 18008, Pid = 18005, Pids = \"[0],[18000],[18005],\", Name = \"删除\", Code = \"del\", MenuType = MenuType.BUTTON, Icon = \"\", Router = \"\", Component = \"\", Permission = \"bd.course.del\", OpenType = MenuOpenType.NONE, Visible = true, Sort = 0, Status = CommonStatus.ENABLE },","BD_COURSE_DEL"]
[18009,{"$f":"A$129","v":18000},{"$f":"C$129&\"[\"&B138&\"],\"","v":"[0],[18000],"},"高中选科组合",{"$f":"E$129&\"/\"&D138","v":"基础数据/高中选科组合"},"course-comb","MenuType.MENU",null,null,{"$f":"J$129&\"/\"&F138","v":"/bd/course-comb"},null,null,"MenuOpenType.COMPONENT",null,"true",null,30,"CommonStatus.ENABLE",null,"            new SysMenu { Id = 18009, Pid = 18000, Pids = \"[0],[18000],\", Name = \"高中选科组合\", Code = \"course-comb\", MenuType = MenuType.MENU, Icon = \"\", Router = \"/bd/course-comb\", Component = \"\", Permission = \"\", OpenType = MenuOpenType.COMPONENT, Visible = true, Sort = 30, Status = CommonStatus.ENABLE },",""]
[18010,{"$f":"A$138","v":18009},{"$f":"C$138&\"[\"&B139&\"],\"","v":"[0],[18000],[18009],"},"添加",{"$f":"E$138&\"/\"&D139","v":"基础数据/高中选科组合/添加"},"add","MenuType.BUTTON",{"$nulls":4},{"$f":"F$129&\".\"&F$138&\".\"&F139","v":"bd.course-comb.add"},"MenuOpenType.NONE",null,"true",null,0,"CommonStatus.ENABLE",null,"            new SysMenu { Id = 18010, Pid = 18009, Pids = \"[0],[18000],[18009],\", Name = \"添加\", Code = \"add\", MenuType = MenuType.BUTTON, Icon = \"\", Router = \"\", Component = \"\", Permission = \"bd.course-comb.add\", OpenType = MenuOpenType.NONE, Visible = true, Sort = 0, Status = CommonStatus.ENABLE },","BD_COURSE_COMB_ADD"]
[18011,{"$f":"A$138","v":18009},{"$f":"C$138&\"[\"&B140&\"],\"","v":"[0],[18000],[18009],"},"修改",{"$f":"E$138&\"/\"&D140","v":"基础数据/高中选科组合/修改"},"edit","MenuType.BUTTON",{"$nulls":4},{"$f":"F$129&\".\"&F$138&\".\"&F140","v":"bd.course-comb.edit"},"MenuOpenType.NONE",null,"true",null,0,"CommonStatus.ENABLE",null,"            new SysMenu { Id = 18011, Pid = 18009, Pids = \"[0],[18000],[18009],\", Name = \"修改\", Code = \"edit\", MenuType = MenuType.BUTTON, Icon = \"\", Router = \"\", Component = \"\", Permission = \"bd.course-comb.edit\", OpenType = MenuOpenType.NONE, Visible = true, Sort = 0, Status = CommonStatus.ENABLE },","BD_COURSE_COMB_EDIT"]
[18012,{"$f":"A$138","v":18009},{"$f":"C$138&\"[\"&B141&\"],\"","v":"[0],[18000],[18009],"},"删除",{"$f":"E$138&\"/\"&D141","v":"基础数据/高中选科组合/删除"},"del","MenuType.BUTTON",{"$nulls":4},{"$f":"F$129&\".\"&F$138&\".\"&F141","v":"bd.course-comb.del"},"MenuOpenType.NONE",null,"true",null,0,"CommonStatus.ENABLE",null,"            new SysMenu { Id = 18012, Pid = 18009, Pids = \"[0],[18000],[18009],\", Name = \"删除\", Code = \"del\", MenuType = MenuType.BUTTON, Icon = \"\", Router = \"\", Component = \"\", Permission = \"bd.course-comb.del\", OpenType = MenuOpenType.NONE, Visible = true, Sort = 0, Status = CommonStatus.ENABLE },","BD_COURSE_COMB_DEL"]
[18013,{"$f":"A$129","v":18000},{"$f":"C$129&\"[\"&B142&\"],\"","v":"[0],[18000],"},"学期",{"$f":"E$129&\"/\"&D142","v":"基础数据/学期"},"semester","MenuType.MENU",null,null,{"$f":"J$129&\"/\"&F142","v":"/bd/semester"},null,null,"MenuOpenType.COMPONENT",null,"true",null,40,"CommonStatus.ENABLE",null,"            new SysMenu { Id = 18013, Pid = 18000, Pids = \"[0],[18000],\", Name = \"学期\", Code = \"semester\", MenuType = MenuType.MENU, Icon = \"\", Router = \"/bd/semester\", Component = \"\", Permission = \"\", OpenType = MenuOpenType.COMPONENT, Visible = true, Sort = 40, Status = CommonStatus.ENABLE },",{"$f":"UPPER(SUBSTITUTE(SUBSTITUTE(L142,\"-\",\"_\"),\".\",\"_\"))","v":""}]
[18014,{"$f":"A$142","v":18013},{"$f":"C$142&\"[\"&B143&\"],\"","v":"[0],[18000],[18013],"},"添加",{"$f":"E$142&\"/\"&D143","v":"基础数据/学期/添加"},"add","MenuType.BUTTON",{"$nulls":4},{"$f":"F$129&\".\"&F$142&\".\"&F143","v":"bd.semester.add"},"MenuOpenType.NONE",null,"true",null,0,"CommonStatus.ENABLE",null,"            new SysMenu { Id = 18014, Pid = 18013, Pids = \"[0],[18000],[18013],\", Name = \"添加\", Code = \"add\", MenuType = MenuType.BUTTON, Icon = \"\", Router = \"\", Component = \"\", Permission = \"bd.semester.add\", OpenType = MenuOpenType.NONE, Visible = true, Sort = 0, Status = CommonStatus.ENABLE },","BD_SEMESTER_ADD"]
[18015,{"$f":"A$142","v":18013},{"$f":"C$142&\"[\"&B144&\"],\"","v":"[0],[18000],[18013],"},"修改",{"$f":"E$142&\"/\"&D144","v":"基础数据/学期/修改"},"edit","MenuType.BUTTON",{"$nulls":4},{"$f":"F$129&\".\"&F$142&\".\"&F144","v":"bd.semester.edit"},"MenuOpenType.NONE",null,"true",null,0,"CommonStatus.ENABLE",null,"            new SysMenu { Id = 18015, Pid = 18013, Pids = \"[0],[18000],[18013],\", Name = \"修改\", Code = \"edit\", MenuType = MenuType.BUTTON, Icon = \"\", Router = \"\", Component = \"\", Permission = \"bd.semester.edit\", OpenType = MenuOpenType.NONE, Visible = true, Sort = 0, Status = CommonStatus.ENABLE },","BD_SEMESTER_EDIT"]
[18016,{"$f":"A$142","v":18013},{"$f":"C$142&\"[\"&B145&\"],\"","v":"[0],[18000],[18013],"},"删除",{"$f":"E$142&\"/\"&D145","v":"基础数据/学期/删除"},"del","MenuType.BUTTON",{"$nulls":4},{"$f":"F$129&\".\"&F$142&\".\"&F145","v":"bd.semester.del"},"MenuOpenType.NONE",null,"true",null,0,"CommonStatus.ENABLE",null,"            new SysMenu { Id = 18016, Pid = 18013, Pids = \"[0],[18000],[18013],\", Name = \"删除\", Code = \"del\", MenuType = MenuType.BUTTON, Icon = \"\", Router = \"\", Component = \"\", Permission = \"bd.semester.del\", OpenType = MenuOpenType.NONE, Visible = true, Sort = 0, Status = CommonStatus.ENABLE },","BD_SEMESTER_DEL"]
[18017,{"$f":"A$129","v":18000},{"$f":"C$129&\"[\"&B146&\"],\"","v":"[0],[18000],"},"基础字典",{"$f":"E$129&\"/\"&D146","v":"基础数据/基础字典"},"dict","MenuType.MENU",null,null,{"$f":"J$129&\"/\"&F146","v":"/bd/dict"},null,null,"MenuOpenType.COMPONENT",null,"true",null,70,"CommonStatus.ENABLE",null,"            new SysMenu { Id = 18017, Pid = 18000, Pids = \"[0],[18000],\", Name = \"基础字典\", Code = \"dict\", MenuType = MenuType.MENU, Icon = \"\", Router = \"/bd/dict\", Component = \"\", Permission = \"\", OpenType = MenuOpenType.COMPONENT, Visible = true, Sort = 70, Status = CommonStatus.ENABLE },",""]
[]
[19000,0,{"$f":"\"[\"&B148&\"],\"","v":"[0],"},"系统管理",{"$f":"D148","v":"系统管理"},"sys","MenuType.FOLDER",null,"system",{"$f":"\"/\"&F148","v":"/sys"},null,null,"MenuOpenType.NONE",null,"true",null,{"$f":"A148","v":19000},"CommonStatus.ENABLE",null,{"$f":"\"            new SysMenu { Id = \"&A148&\", Pid = \"&B148&\", Pids = \"\"\"&C148&\"\"\", Name = \"\"\"&D148&\"\"\", Code = \"\"\"&F148&\"\"\", MenuType = \"&G148&\", Icon = \"\"\"&I148&\"\"\", Router = \"\"\"&J148&\"\"\", Component = \"\"\"&K148&\"\"\", Permission = \"\"\"&L148&\"\"\", OpenType = \"&M148&\", Visible = \"&O148&\", Sort = \"&Q148&\", Status = \"&R148&\" },\"","v":"            new SysMenu { Id = 19000, Pid = 0, Pids = \"[0],\", Name = \"系统管理\", Code = \"sys\", MenuType = MenuType.FOLDER, Icon = \"system\", Router = \"/sys\", Component = \"\", Permission = \"\", OpenType = MenuOpenType.NONE, Visible = true, Sort = 19000, Status = CommonStatus.ENABLE },"},{"$f":"UPPER(SUBSTITUTE(SUBSTITUTE(L148,\"-\",\"_\"),\".\",\"_\"))","v":""}]
[19001,{"$f":"A$148","v":19000},{"$f":"C$148&\"[\"&B149&\"],\"","v":"[0],[19000],"},"组织机构",{"$f":"E$148&\"/\"&D149","v":"系统管理/组织机构"},"org","MenuType.MENU",null,null,{"$f":"J$148&\"/\"&F149","v":"/sys/org"},null,null,"MenuOpenType.COMPONENT",null,"true",null,10,"CommonStatus.ENABLE",null,{"$f":"\"            new SysMenu { Id = \"&A149&\", Pid = \"&B149&\", Pids = \"\"\"&C149&\"\"\", Name = \"\"\"&D149&\"\"\", Code = \"\"\"&F149&\"\"\", MenuType = \"&G149&\", Icon = \"\"\"&I149&\"\"\", Router = \"\"\"&J149&\"\"\", Component = \"\"\"&K149&\"\"\", Permission = \"\"\"&L149&\"\"\", OpenType = \"&M149&\", Visible = \"&O149&\", Sort = \"&Q149&\", Status = \"&R149&\" },\"","v":"            new SysMenu { Id = 19001, Pid = 19000, Pids = \"[0],[19000],\", Name = \"组织机构\", Code = \"org\", MenuType = MenuType.MENU, Icon = \"\", Router = \"/sys/org\", Component = \"\", Permission = \"\", OpenType = MenuOpenType.COMPONENT, Visible = true, Sort = 10, Status = CommonStatus.ENABLE },"},""]
[19002,{"$f":"A$149","v":19001},{"$f":"C$149&\"[\"&B150&\"],\"","v":"[0],[19000],[19001],"},"添加",{"$f":"E$149&\"/\"&D150","v":"系统管理/组织机构/添加"},"add","MenuType.BUTTON",{"$nulls":4},{"$f":"F$148&\".\"&F$149&\".\"&F150","v":"sys.org.add"},"MenuOpenType.NONE",null,"true",null,0,"CommonStatus.ENABLE",null,"            new SysMenu { Id = 19002, Pid = 19001, Pids = \"[0],[19000],[19001],\", Name = \"添加\", Code = \"add\", MenuType = MenuType.BUTTON, Icon = \"\", Router = \"\", Component = \"\", Permission = \"sys.org.add\", OpenType = MenuOpenType.NONE, Visible = true, Sort = 0, Status = CommonStatus.ENABLE },","SYS_ORG_ADD"]
[19003,{"$f":"A$149","v":19001},{"$f":"C$149&\"[\"&B151&\"],\"","v":"[0],[19000],[19001],"},"修改",{"$f":"E$149&\"/\"&D151","v":"系统管理/组织机构/修改"},"edit","MenuType.BUTTON",{"$nulls":4},{"$f":"F$148&\".\"&F$149&\".\"&F151","v":"sys.org.edit"},"MenuOpenType.NONE",null,"true",null,0,"CommonStatus.ENABLE",null,"            new SysMenu { Id = 19003, Pid = 19001, Pids = \"[0],[19000],[19001],\", Name = \"修改\", Code = \"edit\", MenuType = MenuType.BUTTON, Icon = \"\", Router = \"\", Component = \"\", Permission = \"sys.org.edit\", OpenType = MenuOpenType.NONE, Visible = true, Sort = 0, Status = CommonStatus.ENABLE },","SYS_ORG_EDIT"]
[19004,{"$f":"A$149","v":19001},{"$f":"C$149&\"[\"&B152&\"],\"","v":"[0],[19000],[19001],"},"删除",{"$f":"E$149&\"/\"&D152","v":"系统管理/组织机构/删除"},"del","MenuType.BUTTON",{"$nulls":4},{"$f":"F$148&\".\"&F$149&\".\"&F152","v":"sys.org.del"},"MenuOpenType.NONE",null,"true",null,0,"CommonStatus.ENABLE",null,"            new SysMenu { Id = 19004, Pid = 19001, Pids = \"[0],[19000],[19001],\", Name = \"删除\", Code = \"del\", MenuType = MenuType.BUTTON, Icon = \"\", Router = \"\", Component = \"\", Permission = \"sys.org.del\", OpenType = MenuOpenType.NONE, Visible = true, Sort = 0, Status = CommonStatus.ENABLE },","SYS_ORG_DEL"]
[19005,{"$f":"A$148","v":19000},{"$f":"C$148&\"[\"&B153&\"],\"","v":"[0],[19000],"},"用户管理",{"$f":"E$148&\"/\"&D153","v":"系统管理/用户管理"},"user","MenuType.MENU",null,null,{"$f":"J$148&\"/\"&F153","v":"/sys/user"},null,null,"MenuOpenType.COMPONENT",null,"true",null,20,"CommonStatus.ENABLE",null,"            new SysMenu { Id = 19005, Pid = 19000, Pids = \"[0],[19000],\", Name = \"用户管理\", Code = \"user\", MenuType = MenuType.MENU, Icon = \"\", Router = \"/sys/user\", Component = \"\", Permission = \"\", OpenType = MenuOpenType.COMPONENT, Visible = true, Sort = 20, Status = CommonStatus.ENABLE },",""]
[19006,{"$f":"A$153","v":19005},{"$f":"C$153&\"[\"&B154&\"],\"","v":"[0],[19000],[19005],"},"添加",{"$f":"E$153&\"/\"&D154","v":"系统管理/用户管理/添加"},"add","MenuType.BUTTON",{"$nulls":4},{"$f":"F$148&\".\"&F$153&\".\"&F154","v":"sys.user.add"},"MenuOpenType.NONE",null,"true",null,0,"CommonStatus.ENABLE",null,"            new SysMenu { Id = 19006, Pid = 19005, Pids = \"[0],[19000],[19005],\", Name = \"添加\", Code = \"add\", MenuType = MenuType.BUTTON, Icon = \"\", Router = \"\", Component = \"\", Permission = \"sys.user.add\", OpenType = MenuOpenType.NONE, Visible = true, Sort = 0, Status = CommonStatus.ENABLE },","SYS_USER_ADD"]
[19007,19005,{"$f":"C$153&\"[\"&B155&\"],\"","v":"[0],[19000],[19005],"},"修改","系统管理/用户管理/修改","edit","MenuType.BUTTON",{"$nulls":4},"sys.user.edit","MenuOpenType.NONE",null,"true",null,0,"CommonStatus.ENABLE",null,"            new SysMenu { Id = 19007, Pid = 19005, Pids = \"[0],[19000],[19005],\", Name = \"修改\", Code = \"edit\", MenuType = MenuType.BUTTON, Icon = \"\", Router = \"\", Component = \"\", Permission = \"sys.user.edit\", OpenType = MenuOpenType.NONE, Visible = true, Sort = 0, Status = CommonStatus.ENABLE },","SYS_USER_EDIT"]
[19008,19005,{"$f":"C$153&\"[\"&B156&\"],\"","v":"[0],[19000],[19005],"},"删除","系统管理/用户管理/删除","del","MenuType.BUTTON",{"$nulls":4},"sys.user.del","MenuOpenType.NONE",null,"true",null,0,"CommonStatus.ENABLE",null,"            new SysMenu { Id = 19008, Pid = 19005, Pids = \"[0],[19000],[19005],\", Name = \"删除\", Code = \"del\", MenuType = MenuType.BUTTON, Icon = \"\", Router = \"\", Component = \"\", Permission = \"sys.user.del\", OpenType = MenuOpenType.NONE, Visible = true, Sort = 0, Status = CommonStatus.ENABLE },","SYS_USER_DEL"]
[19009,{"$f":"A$148","v":19000},{"$f":"C$148&\"[\"&B157&\"],\"","v":"[0],[19000],"},"角色权限",{"$f":"E$148&\"/\"&D157","v":"系统管理/角色权限"},"role","MenuType.MENU",null,null,{"$f":"J$148&\"/\"&F157","v":"/sys/role"},null,null,"MenuOpenType.COMPONENT",null,"true",null,30,"CommonStatus.ENABLE",null,"            new SysMenu { Id = 19009, Pid = 19000, Pids = \"[0],[19000],\", Name = \"角色权限\", Code = \"role\", MenuType = MenuType.MENU, Icon = \"\", Router = \"/sys/role\", Component = \"\", Permission = \"\", OpenType = MenuOpenType.COMPONENT, Visible = true, Sort = 30, Status = CommonStatus.ENABLE },",""]
[19010,{"$f":"A$157","v":19009},{"$f":"C$157&\"[\"&B158&\"],\"","v":"[0],[19000],[19009],"},"添加",{"$f":"E$157&\"/\"&D158","v":"系统管理/角色权限/添加"},"add","MenuType.BUTTON",{"$nulls":4},{"$f":"F$148&\".\"&F$157&\".\"&F158","v":"sys.role.add"},"MenuOpenType.NONE",null,"true",null,0,"CommonStatus.ENABLE",null,"            new SysMenu { Id = 19010, Pid = 19009, Pids = \"[0],[19000],[19009],\", Name = \"添加\", Code = \"add\", MenuType = MenuType.BUTTON, Icon = \"\", Router = \"\", Component = \"\", Permission = \"sys.role.add\", OpenType = MenuOpenType.NONE, Visible = true, Sort = 0, Status = CommonStatus.ENABLE },","SYS_ROLE_ADD"]
[19011,19009,{"$f":"C$157&\"[\"&B159&\"],\"","v":"[0],[19000],[19009],"},"修改",{"$f":"E$157&\"/\"&D159","v":"系统管理/角色权限/修改"},"edit","MenuType.BUTTON",{"$nulls":4},{"$f":"F$148&\".\"&F$157&\".\"&F159","v":"sys.role.edit"},"MenuOpenType.NONE",null,"true",null,0,"CommonStatus.ENABLE",null,"            new SysMenu { Id = 19011, Pid = 19009, Pids = \"[0],[19000],[19009],\", Name = \"修改\", Code = \"edit\", MenuType = MenuType.BUTTON, Icon = \"\", Router = \"\", Component = \"\", Permission = \"sys.role.edit\", OpenType = MenuOpenType.NONE, Visible = true, Sort = 0, Status = CommonStatus.ENABLE },","SYS_ROLE_EDIT"]
[19012,19009,{"$f":"C$157&\"[\"&B160&\"],\"","v":"[0],[19000],[19009],"},"删除",{"$f":"E$157&\"/\"&D160","v":"系统管理/角色权限/删除"},"del","MenuType.BUTTON",{"$nulls":4},{"$f":"F$148&\".\"&F$157&\".\"&F160","v":"sys.role.del"},"MenuOpenType.NONE",null,"true",null,0,"CommonStatus.ENABLE",null,"            new SysMenu { Id = 19012, Pid = 19009, Pids = \"[0],[19000],[19009],\", Name = \"删除\", Code = \"del\", MenuType = MenuType.BUTTON, Icon = \"\", Router = \"\", Component = \"\", Permission = \"sys.role.del\", OpenType = MenuOpenType.NONE, Visible = true, Sort = 0, Status = CommonStatus.ENABLE },","SYS_ROLE_DEL"]
[19013,19009,{"$f":"C$157&\"[\"&B161&\"],\"","v":"[0],[19000],[19009],"},"授权",{"$f":"E$157&\"/\"&D161","v":"系统管理/角色权限/授权"},"grant","MenuType.BUTTON",{"$nulls":4},{"$f":"F$148&\".\"&F$157&\".\"&F161","v":"sys.role.grant"},"MenuOpenType.NONE",null,"true",null,0,"CommonStatus.ENABLE",null,"            new SysMenu { Id = 19013, Pid = 19009, Pids = \"[0],[19000],[19009],\", Name = \"授权\", Code = \"grant\", MenuType = MenuType.BUTTON, Icon = \"\", Router = \"\", Component = \"\", Permission = \"sys.role.grant\", OpenType = MenuOpenType.NONE, Visible = true, Sort = 0, Status = CommonStatus.ENABLE },","SYS_ROLE_GRANT"]
[19014,{"$f":"A$148","v":19000},{"$f":"C$148&\"[\"&B162&\"],\"","v":"[0],[19000],"},"功能管理",{"$f":"E$148&\"/\"&D162","v":"系统管理/功能管理"},"menu","MenuType.MENU",null,null,{"$f":"J$148&\"/\"&F162","v":"/sys/menu"},null,null,"MenuOpenType.COMPONENT",null,"true",null,40,"CommonStatus.ENABLE",null,"            new SysMenu { Id = 19014, Pid = 19000, Pids = \"[0],[19000],\", Name = \"功能管理\", Code = \"menu\", MenuType = MenuType.MENU, Icon = \"\", Router = \"/sys/menu\", Component = \"\", Permission = \"\", OpenType = MenuOpenType.COMPONENT, Visible = true, Sort = 40, Status = CommonStatus.ENABLE },",""]
[19015,{"$f":"A$162","v":19014},{"$f":"C$162&\"[\"&B163&\"],\"","v":"[0],[19000],[19014],"},"添加",{"$f":"E$162&\"/\"&D163","v":"系统管理/功能管理/添加"},"add","MenuType.BUTTON",{"$nulls":4},{"$f":"F$148&\".\"&F$162&\".\"&F163","v":"sys.menu.add"},"MenuOpenType.NONE",null,"true",null,0,"CommonStatus.ENABLE",null,"            new SysMenu { Id = 19015, Pid = 19014, Pids = \"[0],[19000],[19014],\", Name = \"添加\", Code = \"add\", MenuType = MenuType.BUTTON, Icon = \"\", Router = \"\", Component = \"\", Permission = \"sys.menu.add\", OpenType = MenuOpenType.NONE, Visible = true, Sort = 0, Status = CommonStatus.ENABLE },","SYS_MENU_ADD"]
[19016,{"$f":"A$162","v":19014},{"$f":"C$162&\"[\"&B164&\"],\"","v":"[0],[19000],[19014],"},"修改",{"$f":"E$162&\"/\"&D164","v":"系统管理/功能管理/修改"},"edit","MenuType.BUTTON",{"$nulls":4},{"$f":"F$148&\".\"&F$162&\".\"&F164","v":"sys.menu.edit"},"MenuOpenType.NONE",null,"true",null,0,"CommonStatus.ENABLE",null,"            new SysMenu { Id = 19016, Pid = 19014, Pids = \"[0],[19000],[19014],\", Name = \"修改\", Code = \"edit\", MenuType = MenuType.BUTTON, Icon = \"\", Router = \"\", Component = \"\", Permission = \"sys.menu.edit\", OpenType = MenuOpenType.NONE, Visible = true, Sort = 0, Status = CommonStatus.ENABLE },","SYS_MENU_EDIT"]
[19017,{"$f":"A$162","v":19014},{"$f":"C$162&\"[\"&B165&\"],\"","v":"[0],[19000],[19014],"},"删除",{"$f":"E$162&\"/\"&D165","v":"系统管理/功能管理/删除"},"del","MenuType.BUTTON",{"$nulls":4},{"$f":"F$148&\".\"&F$162&\".\"&F165","v":"sys.menu.del"},"MenuOpenType.NONE",null,"true",null,0,"CommonStatus.ENABLE",null,"            new SysMenu { Id = 19017, Pid = 19014, Pids = \"[0],[19000],[19014],\", Name = \"删除\", Code = \"del\", MenuType = MenuType.BUTTON, Icon = \"\", Router = \"\", Component = \"\", Permission = \"sys.menu.del\", OpenType = MenuOpenType.NONE, Visible = true, Sort = 0, Status = CommonStatus.ENABLE },","SYS_MENU_DEL"]
[19018,{"$f":"A$148","v":19000},{"$f":"C$148&\"[\"&B166&\"],\"","v":"[0],[19000],"},"日志管理",{"$f":"E$148&\"/\"&D166","v":"系统管理/日志管理"},"log","MenuType.FOLDER",null,null,{"$f":"J$148&\"/\"&F166","v":"/sys/log"},null,null,"MenuOpenType.NONE",null,"true",null,50,"CommonStatus.ENABLE",null,"            new SysMenu { Id = 19018, Pid = 19000, Pids = \"[0],[19000],\", Name = \"日志管理\", Code = \"log\", MenuType = MenuType.FOLDER, Icon = \"\", Router = \"/sys/log\", Component = \"\", Permission = \"\", OpenType = MenuOpenType.NONE, Visible = true, Sort = 50, Status = CommonStatus.ENABLE },",{"$f":"UPPER(SUBSTITUTE(SUBSTITUTE(L166,\"-\",\"_\"),\".\",\"_\"))","v":""}]
[19019,{"$f":"A$166","v":19018},{"$f":"C$166&\"[\"&B167&\"],\"","v":"[0],[19000],[19018],"},"异常日志",{"$f":"E$166&\"/\"&D167","v":"系统管理/日志管理/异常日志"},"ex","MenuType.MENU",null,null,{"$f":"J$166&\"/\"&F167","v":"/sys/log/ex"},null,null,"MenuOpenType.COMPONENT",null,"true",null,10,"CommonStatus.ENABLE",null,"            new SysMenu { Id = 19019, Pid = 19018, Pids = \"[0],[19000],[19018],\", Name = \"异常日志\", Code = \"ex\", MenuType = MenuType.MENU, Icon = \"\", Router = \"/sys/log/ex\", Component = \"\", Permission = \"\", OpenType = MenuOpenType.COMPONENT, Visible = true, Sort = 10, Status = CommonStatus.ENABLE },",""]
[19020,{"$f":"A$167","v":19019},{"$f":"C$167&\"[\"&B168&\"],\"","v":"[0],[19000],[19018],[19019],"},"清除日志",{"$f":"E$167&\"/\"&D168","v":"系统管理/日志管理/异常日志/清除日志"},"clear","MenuType.BUTTON",{"$nulls":4},{"$f":"F$148&\".\"&F$166&\".\"&F$167&\".\"&F168","v":"sys.log.ex.clear"},"MenuOpenType.NONE",null,"true",null,0,"CommonStatus.ENABLE",null,"            new SysMenu { Id = 19020, Pid = 19019, Pids = \"[0],[19000],[19018],[19019],\", Name = \"清除日志\", Code = \"clear\", MenuType = MenuType.BUTTON, Icon = \"\", Router = \"\", Component = \"\", Permission = \"sys.log.ex.clear\", OpenType = MenuOpenType.NONE, Visible = true, Sort = 0, Status = CommonStatus.ENABLE },","SYS_LOG_EX_CLEAR"]
[19021,{"$f":"A$166","v":19018},{"$f":"C$166&\"[\"&B169&\"],\"","v":"[0],[19000],[19018],"},"访问日志","系统管理/日志管理/访问日志","vis","MenuType.MENU",null,null,"/sys/log/vis",null,null,"MenuOpenType.COMPONENT",null,"true",null,20,"CommonStatus.ENABLE",null,"            new SysMenu { Id = 19021, Pid = 19018, Pids = \"[0],[19000],[19018],\", Name = \"访问日志\", Code = \"vis\", MenuType = MenuType.MENU, Icon = \"\", Router = \"/sys/log/vis\", Component = \"\", Permission = \"\", OpenType = MenuOpenType.COMPONENT, Visible = true, Sort = 20, Status = CommonStatus.ENABLE },",""]
[19022,{"$f":"A$169","v":19021},{"$f":"C$169&\"[\"&B170&\"],\"","v":"[0],[19000],[19018],[19021],"},"清除日志",{"$f":"E$169&\"/\"&D170","v":"系统管理/日志管理/访问日志/清除日志"},"clear","MenuType.BUTTON",{"$nulls":4},{"$f":"F$148&\".\"&F$166&\".\"&F$169&\".\"&F170","v":"sys.log.vis.clear"},"MenuOpenType.NONE",null,"true",null,0,"CommonStatus.ENABLE",null,"            new SysMenu { Id = 19022, Pid = 19021, Pids = \"[0],[19000],[19018],[19021],\", Name = \"清除日志\", Code = \"clear\", MenuType = MenuType.BUTTON, Icon = \"\", Router = \"\", Component = \"\", Permission = \"sys.log.vis.clear\", OpenType = MenuOpenType.NONE, Visible = true, Sort = 0, Status = CommonStatus.ENABLE },","SYS_LOG_VIS_CLEAR"]
[19023,{"$f":"A$166","v":19018},{"$f":"C$166&\"[\"&B171&\"],\"","v":"[0],[19000],[19018],"},"操作日志","系统管理/日志管理/操作日志","op","MenuType.MENU",null,null,"/sys/log/op",null,null,"MenuOpenType.COMPONENT",null,"true",null,30,"CommonStatus.ENABLE",null,"            new SysMenu { Id = 19023, Pid = 19018, Pids = \"[0],[19000],[19018],\", Name = \"操作日志\", Code = \"op\", MenuType = MenuType.MENU, Icon = \"\", Router = \"/sys/log/op\", Component = \"\", Permission = \"\", OpenType = MenuOpenType.COMPONENT, Visible = true, Sort = 30, Status = CommonStatus.ENABLE },",""]
[19024,{"$f":"A$171","v":19023},{"$f":"C$169&\"[\"&B172&\"],\"","v":"[0],[19000],[19018],[19023],"},"清除日志",{"$f":"E$171&\"/\"&D172","v":"系统管理/日志管理/操作日志/清除日志"},"clear","MenuType.BUTTON",{"$nulls":4},{"$f":"F$148&\".\"&F$166&\".\"&F$171&\".\"&F172","v":"sys.log.op.clear"},"MenuOpenType.NONE",null,"true",null,0,"CommonStatus.ENABLE",null,"            new SysMenu { Id = 19024, Pid = 19023, Pids = \"[0],[19000],[19018],[19023],\", Name = \"清除日志\", Code = \"clear\", MenuType = MenuType.BUTTON, Icon = \"\", Router = \"\", Component = \"\", Permission = \"sys.log.op.clear\", OpenType = MenuOpenType.NONE, Visible = true, Sort = 0, Status = CommonStatus.ENABLE },","SYS_LOG_OP_CLEAR"]

{"sheet":"缩略词","index":1,"n_rows":22,"n_cols":3,"rows_kept":22,"cut":false,"hidden":false,"merged":[]}
["名词","名称","缩写"]
[null,"purchase","pur"]
[null,"manufacture","mf"]
[null,"quality","qa"]
[null,"warehouse","wh"]
[null,"warehouse place","wh-p"]
[null,"warehouse place group","wh-pg"]
[null,"customer","cust"]
[null,"supplier","sup"]
[null,"unit group","ug"]
[null,"work type","wt"]
[null,"k3 dept","kdept"]
[null,"k3 sync","ksync"]
[null,"workbench","wb"]
[null,"transfer check","tcheck"]
[null,"stock in","stk-in"]
[null,"stock out","stk-out"]
[null,"inventory","inv"]
[null,"allocation","alloc"]
[null,"material","mat"]
["生产领料","production material requisition","pmr"]
["委外","subcontract","scont"]

{"sheet":"学校角色","index":2,"n_rows":115,"n_cols":4,"rows_kept":115,"cut":false,"hidden":false,"merged":[]}
["sys_role_id","sys_menu_id","sys_menu_name","/* 学校管理员角色菜单权限 */"]
[6,{"$f":"菜单!A2","v":10000},{"$f":"菜单!E2","v":"工作台"},{"$f":"\"INSERT INTO sys_role_menu(sys_role_id, sys_menu_id, data_scope_type) VALUES(\"&A2&\", \"&B2&\", 0);\"","v":"INSERT INTO sys_role_menu(sys_role_id, sys_menu_id, data_scope_type) VALUES(6, 10000, 0);"}]
[6,{"$f":"菜单!A4","v":10100},{"$f":"菜单!E4","v":"基础资料"},{"$f":"\"INSERT INTO sys_role_menu(sys_role_id, sys_menu_id, data_scope_type) VALUES(\"&A3&\", \"&B3&\", 0);\"","v":"INSERT INTO sys_role_menu(sys_role_id, sys_menu_id, data_scope_type) VALUES(6, 10100, 0);"}]
[6,{"$f":"菜单!A5","v":10101},{"$f":"菜单!E5","v":"基础资料/班级信息"},"INSERT INTO sys_role_menu(sys_role_id, sys_menu_id, data_scope_type) VALUES(6, 10101, 0);"]
[6,{"$f":"菜单!A6","v":10102},{"$f":"菜单!E6","v":"基础资料/班级信息/添加"},"INSERT INTO sys_role_menu(sys_role_id, sys_menu_id, data_scope_type) VALUES(6, 10102, 0);"]
[6,{"$f":"菜单!A7","v":10103},{"$f":"菜单!E7","v":"基础资料/班级信息/修改"},"INSERT INTO sys_role_menu(sys_role_id, sys_menu_id, data_scope_type) VALUES(6, 10103, 0);"]
[6,{"$f":"菜单!A8","v":10104},{"$f":"菜单!E8","v":"基础资料/班级信息/删除"},"INSERT INTO sys_role_menu(sys_role_id, sys_menu_id, data_scope_type) VALUES(6, 10104, 0);"]
[6,{"$f":"菜单!A9","v":10105},{"$f":"菜单!E9","v":"基础资料/学生信息"},"INSERT INTO sys_role_menu(sys_role_id, sys_menu_id, data_scope_type) VALUES(6, 10105, 0);"]
[6,{"$f":"菜单!A10","v":10106},{"$f":"菜单!E10","v":"基础资料/学生信息/添加"},"INSERT INTO sys_role_menu(sys_role_id, sys_menu_id, data_scope_type) VALUES(6, 10106, 0);"]
[6,{"$f":"菜单!A11","v":10107},{"$f":"菜单!E11","v":"基础资料/学生信息/修改"},"INSERT INTO sys_role_menu(sys_role_id, sys_menu_id, data_scope_type) VALUES(6, 10107, 0);"]
[6,{"$f":"菜单!A12","v":10108},{"$f":"菜单!E12","v":"基础资料/学生信息/删除"},"INSERT INTO sys_role_menu(sys_role_id, sys_menu_id, data_scope_type) VALUES(6, 10108, 0);"]
[6,{"$f":"菜单!A13","v":10109},{"$f":"菜单!E13","v":"基础资料/教师信息"},"INSERT INTO sys_role_menu(sys_role_id, sys_menu_id, data_scope_type) VALUES(6, 10109, 0);"]
[6,{"$f":"菜单!A14","v":10110},{"$f":"菜单!E14","v":"基础资料/教师信息/添加"},"INSERT INTO sys_role_menu(sys_role_id, sys_menu_id, data_scope_type) VALUES(6, 10110, 0);"]
[6,{"$f":"菜单!A15","v":10111},{"$f":"菜单!E15","v":"基础资料/教师信息/修改"},"INSERT INTO sys_role_menu(sys_role_id, sys_menu_id, data_scope_type) VALUES(6, 10111, 0);"]
[6,{"$f":"菜单!A16","v":10112},{"$f":"菜单!E16","v":"基础资料/教师信息/删除"},"INSERT INTO sys_role_menu(sys_role_id, sys_menu_id, data_scope_type) VALUES(6, 10112, 0);"]
[6,{"$f":"菜单!A17","v":10113},{"$f":"菜单!E17","v":"基础资料/特殊学生管理"},"INSERT INTO sys_role_menu(sys_role_id, sys_menu_id, data_scope_type) VALUES(6, 10113, 0);"]
[6,{"$f":"菜单!A18","v":10114},{"$f":"菜单!E18","v":"基础资料/特殊学生管理/添加"},"INSERT INTO sys_role_menu(sys_role_id, sys_menu_id, data_scope_type) VALUES(6, 10114, 0);"]
[6,{"$f":"菜单!A19","v":10115},{"$f":"菜单!E19","v":"基础资料/特殊学生管理/修改"},"INSERT INTO sys_role_menu(sys_role_id, sys_menu_id, data_scope_type) VALUES(6, 10115, 0);"]
[6,{"$f":"菜单!A20","v":10116},{"$f":"菜单!E20","v":"基础资料/特殊学生管理/删除"},"INSERT INTO sys_role_menu(sys_role_id, sys_menu_id, data_scope_type) VALUES(6, 10116, 0);"]
[6,{"$f":"菜单!A80","v":10300},{"$f":"菜单!E80","v":"评估监测"},"INSERT INTO sys_role_menu(sys_role_id, sys_menu_id, data_scope_type) VALUES(6, 10300, 0);"]
[6,{"$f":"菜单!A81","v":10301},{"$f":"菜单!E81","v":"评估监测/评估监测计划"},"INSERT INTO sys_role_menu(sys_role_id, sys_menu_id, data_scope_type) VALUES(6, 10301, 0);"]
[6,{"$f":"菜单!A82","v":10302},{"$f":"菜单!E82","v":"评估监测/学生信息上报"},"INSERT INTO sys_role_menu(sys_role_id, sys_menu_id, data_scope_type) VALUES(6, 10302, 0);"]
[6,{"$f":"菜单!A83","v":10303},{"$f":"菜单!E83","v":"评估监测/学生信息上报/添加"},"INSERT INTO sys_role_menu(sys_role_id, sys_menu_id, data_scope_type) VALUES(6, 10303, 0);"]
[6,{"$f":"菜单!A84","v":10304},{"$f":"菜单!E84","v":"评估监测/学生信息上报/修改"},"INSERT INTO sys_role_menu(sys_role_id, sys_menu_id, data_scope_type) VALUES(6, 10304, 0);"]
[6,{"$f":"菜单!A85","v":10305},{"$f":"菜单!E85","v":"评估监测/学生信息上报/删除"},"INSERT INTO sys_role_menu(sys_role_id, sys_menu_id, data_scope_type) VALUES(6, 10305, 0);"]
[6,{"$f":"菜单!A86","v":10306},{"$f":"菜单!E86","v":"评估监测/学生信息上报/提交"},"INSERT INTO sys_role_menu(sys_role_id, sys_menu_id, data_scope_type) VALUES(6, 10306, 0);"]
[6,{"$f":"菜单!A87","v":10307},{"$f":"菜单!E87","v":"评估监测/学生信息上报/审核"},"INSERT INTO sys_role_menu(sys_role_id, sys_menu_id, data_scope_type) VALUES(6, 10307, 0);"]
[6,{"$f":"菜单!A88","v":10308},{"$f":"菜单!E88","v":"评估监测/学生信息上报/下载"},"INSERT INTO sys_role_menu(sys_role_id, sys_menu_id, data_scope_type) VALUES(6, 10308, 0);"]
[6,{"$f":"菜单!A89","v":10309},{"$f":"菜单!E89","v":"评估监测/特殊学生上报"},"INSERT INTO sys_role_menu(sys_role_id, sys_menu_id, data_scope_type) VALUES(6, 10309, 0);"]
[6,{"$f":"菜单!A90","v":10310},{"$f":"菜单!E90","v":"评估监测/特殊学生上报/添加"},"INSERT INTO sys_role_menu(sys_role_id, sys_menu_id, data_scope_type) VALUES(6, 10310, 0);"]
[6,{"$f":"菜单!A91","v":10311},{"$f":"菜单!E91","v":"评估监测/特殊学生上报/修改"},"INSERT INTO sys_role_menu(sys_role_id, sys_menu_id, data_scope_type) VALUES(6, 10311, 0);"]
[6,{"$f":"菜单!A92","v":10312},{"$f":"菜单!E92","v":"评估监测/特殊学生上报/删除"},"INSERT INTO sys_role_menu(sys_role_id, sys_menu_id, data_scope_type) VALUES(6, 10312, 0);"]
[6,{"$f":"菜单!A93","v":10313},{"$f":"菜单!E93","v":"评估监测/特殊学生上报/提交"},"INSERT INTO sys_role_menu(sys_role_id, sys_menu_id, data_scope_type) VALUES(6, 10313, 0);"]
[6,{"$f":"菜单!A94","v":10314},{"$f":"菜单!E94","v":"评估监测/特殊学生上报/审核"},"INSERT INTO sys_role_menu(sys_role_id, sys_menu_id, data_scope_type) VALUES(6, 10314, 0);"]
[6,{"$f":"菜单!A95","v":10315},{"$f":"菜单!E95","v":"评估监测/特殊学生上报/下载"},{"$f":"\"INSERT INTO sys_role_menu(sys_role_id, sys_menu_id, data_scope_type) VALUES(\"&A35&\", \"&B35&\", 0);\"","v":"INSERT INTO sys_role_menu(sys_role_id, sys_menu_id, data_scope_type) VALUES(6, 10315, 0);"}]
[6,{"$f":"菜单!A96","v":10316},{"$f":"菜单!E96","v":"评估监测/教师信息上报"},"INSERT INTO sys_role_menu(sys_role_id, sys_menu_id, data_scope_type) VALUES(6, 10316, 0);"]
[6,{"$f":"菜单!A97","v":10317},{"$f":"菜单!E97","v":"评估监测/教师信息上报/添加"},"INSERT INTO sys_role_menu(sys_role_id, sys_menu_id, data_scope_type) VALUES(6, 10317, 0);"]
[6,{"$f":"菜单!A98","v":10318},{"$f":"菜单!E98","v":"评估监测/教师信息上报/修改"},"INSERT INTO sys_role_menu(sys_role_id, sys_menu_id, data_scope_type) VALUES(6, 10318, 0);"]
[6,{"$f":"菜单!A99","v":10319},{"$f":"菜单!E99","v":"评估监测/教师信息上报/删除"},"INSERT INTO sys_role_menu(sys_role_id, sys_menu_id, data_scope_type) VALUES(6, 10319, 0);"]
[6,{"$f":"菜单!A100","v":10320},{"$f":"菜单!E100","v":"评估监测/教师信息上报/提交"},"INSERT INTO sys_role_menu(sys_role_id, sys_menu_id, data_scope_type) VALUES(6, 10320, 0);"]
[6,{"$f":"菜单!A101","v":10321},{"$f":"菜单!E101","v":"评估监测/教师信息上报/审核"},"INSERT INTO sys_role_menu(sys_role_id, sys_menu_id, data_scope_type) VALUES(6, 10321, 0);"]
[6,{"$f":"菜单!A102","v":10322},{"$f":"菜单!E102","v":"评估监测/教师信息上报/下载"},"INSERT INTO sys_role_menu(sys_role_id, sys_menu_id, data_scope_type) VALUES(6, 10322, 0);"]
[6,{"$f":"菜单!A103","v":10323},{"$f":"菜单!E103","v":"评估监测/教师学科上报"},"INSERT INTO sys_role_menu(sys_role_id, sys_menu_id, data_scope_type) VALUES(6, 10323, 0);"]
[6,{"$f":"菜单!A104","v":10324},{"$f":"菜单!E104","v":"评估监测/教师学科上报/添加"},"INSERT INTO sys_role_menu(sys_role_id, sys_menu_id, data_scope_type) VALUES(6, 10324, 0);"]
[6,{"$f":"菜单!A105","v":10325},{"$f":"菜单!E105","v":"评估监测/教师学科上报/修改"},"INSERT INTO sys_role_menu(sys_role_id, sys_menu_id, data_scope_type) VALUES(6, 10325, 0);"]
[6,{"$f":"菜单!A106","v":10326},{"$f":"菜单!E106","v":"评估监测/教师学科上报/删除"},"INSERT INTO sys_role_menu(sys_role_id, sys_menu_id, data_scope_type) VALUES(6, 10326, 0);"]
[6,{"$f":"菜单!A107","v":10327},{"$f":"菜单!E107","v":"评估监测/教师学科上报/提交"},"INSERT INTO sys_role_menu(sys_role_id, sys_menu_id, data_scope_type) VALUES(6, 10327, 0);"]
[6,{"$f":"菜单!A108","v":10328},{"$f":"菜单!E108","v":"评估监测/教师学科上报/审核"},"INSERT INTO sys_role_menu(sys_role_id, sys_menu_id, data_scope_type) VALUES(6, 10328, 0);"]
[6,{"$f":"菜单!A109","v":10329},{"$f":"菜单!E109","v":"评估监测/教师学科上报/下载"},"INSERT INTO sys_role_menu(sys_role_id, sys_menu_id, data_scope_type) VALUES(6, 10329, 0);"]
[6,{"$f":"菜单!A110","v":10330},{"$f":"菜单!E110","v":"评估监测/监测抽样下载"},"INSERT INTO sys_role_menu(sys_role_id, sys_menu_id, data_scope_type) VALUES(6, 10330, 0);"]
[6,{"$f":"菜单!A111","v":10331},{"$f":"菜单!E111","v":"评估监测/监测抽样下载/下载"},"INSERT INTO sys_role_menu(sys_role_id, sys_menu_id, data_scope_type) VALUES(6, 10331, 0);"]
[6,{"$f":"菜单!A112","v":10332},{"$f":"菜单!E112","v":"评估监测/缺测替补上报"},"INSERT INTO sys_role_menu(sys_role_id, sys_menu_id, data_scope_type) VALUES(6, 10332, 0);"]
[6,{"$f":"菜单!A113","v":10333},{"$f":"菜单!E113","v":"评估监测/缺测替补上报/添加"},"INSERT INTO sys_role_menu(sys_role_id, sys_menu_id, data_scope_type) VALUES(6, 10333, 0);"]
[6,{"$f":"菜单!A114","v":10334},{"$f":"菜单!E114","v":"评估监测/缺测替补上报/修改"},"INSERT INTO sys_role_menu(sys_role_id, sys_menu_id, data_scope_type) VALUES(6, 10334, 0);"]
[6,{"$f":"菜单!A115","v":10335},{"$f":"菜单!E115","v":"评估监测/缺测替补上报/删除"},"INSERT INTO sys_role_menu(sys_role_id, sys_menu_id, data_scope_type) VALUES(6, 10335, 0);"]
[6,{"$f":"菜单!A116","v":10336},{"$f":"菜单!E116","v":"评估监测/缺测替补上报/提交"},"INSERT INTO sys_role_menu(sys_role_id, sys_menu_id, data_scope_type) VALUES(6, 10336, 0);"]
[6,{"$f":"菜单!A117","v":10337},{"$f":"菜单!E117","v":"评估监测/缺测替补上报/审核"},"INSERT INTO sys_role_menu(sys_role_id, sys_menu_id, data_scope_type) VALUES(6, 10337, 0);"]
[6,{"$f":"菜单!A118","v":10338},{"$f":"菜单!E118","v":"评估监测/缺测替补上报/下载"},"INSERT INTO sys_role_menu(sys_role_id, sys_menu_id, data_scope_type) VALUES(6, 10338, 0);"]
[6,{"$f":"菜单!A119","v":10339},{"$f":"菜单!E119","v":"评估监测/校测数据上报"},"INSERT INTO sys_role_menu(sys_role_id, sys_menu_id, data_scope_type) VALUES(6, 10339, 0);"]
[6,{"$f":"菜单!A120","v":10340},{"$f":"菜单!E120","v":"评估监测/校测数据上报/添加"},"INSERT INTO sys_role_menu(sys_role_id, sys_menu_id, data_scope_type) VALUES(6, 10340, 0);"]
[6,{"$f":"菜单!A121","v":10341},{"$f":"菜单!E121","v":"评估监测/校测数据上报/修改"},"INSERT INTO sys_role_menu(sys_role_id, sys_menu_id, data_scope_type) VALUES(6, 10341, 0);"]
[6,{"$f":"菜单!A122","v":10342},{"$f":"菜单!E122","v":"评估监测/校测数据上报/删除"},"INSERT INTO sys_role_menu(sys_role_id, sys_menu_id, data_scope_type) VALUES(6, 10342, 0);"]
[6,{"$f":"菜单!A123","v":10343},{"$f":"菜单!E123","v":"评估监测/校测数据上报/提交"},"INSERT INTO sys_role_menu(sys_role_id, sys_menu_id, data_scope_type) VALUES(6, 10343, 0);"]
[6,{"$f":"菜单!A124","v":10344},{"$f":"菜单!E124","v":"评估监测/校测数据上报/审核"},"INSERT INTO sys_role_menu(sys_role_id, sys_menu_id, data_scope_type) VALUES(6, 10344, 0);"]
[6,{"$f":"菜单!A125","v":10345},{"$f":"菜单!E125","v":"评估监测/校测数据上报/下载"},"INSERT INTO sys_role_menu(sys_role_id, sys_menu_id, data_scope_type) VALUES(6, 10345, 0);"]
[6,{"$f":"菜单!A126","v":10346},{"$f":"菜单!E126","v":"评估监测/监测结果下载"},"INSERT INTO sys_role_menu(sys_role_id, sys_menu_id, data_scope_type) VALUES(6, 10346, 0);"]
[6,{"$f":"菜单!A127","v":10347},{"$f":"菜单!E127","v":"评估监测/监测结果下载/下载"},"INSERT INTO sys_role_menu(sys_role_id, sys_menu_id, data_scope_type) VALUES(6, 10347, 0);"]
[null,null,null,"/* 学校数据填报员角色菜单权限 */"]
[7,{"$f":"菜单!A2","v":10000},{"$f":"菜单!E2","v":"工作台"},{"$f":"\"INSERT INTO sys_role_menu(sys_role_id, sys_menu_id, data_scope_type) VALUES(\"&A69&\", \"&B69&\", 0);\"","v":"INSERT INTO sys_role_menu(sys_role_id, sys_menu_id, data_scope_type) VALUES(7, 10000, 0);"}]
[7,{"$f":"菜单!A80","v":10300},{"$f":"菜单!E80","v":"评估监测"},{"$f":"\"INSERT INTO sys_role_menu(sys_role_id, sys_menu_id, data_scope_type) VALUES(\"&A70&\", \"&B70&\", 0);\"","v":"INSERT INTO sys_role_menu(sys_role_id, sys_menu_id, data_scope_type) VALUES(7, 10300, 0);"}]
[7,{"$f":"菜单!A81","v":10301},{"$f":"菜单!E81","v":"评估监测/评估监测计划"},"INSERT INTO sys_role_menu(sys_role_id, sys_menu_id, data_scope_type) VALUES(7, 10301, 0);"]
[7,{"$f":"菜单!A82","v":10302},{"$f":"菜单!E82","v":"评估监测/学生信息上报"},"INSERT INTO sys_role_menu(sys_role_id, sys_menu_id, data_scope_type) VALUES(7, 10302, 0);"]
[7,{"$f":"菜单!A83","v":10303},{"$f":"菜单!E83","v":"评估监测/学生信息上报/添加"},"INSERT INTO sys_role_menu(sys_role_id, sys_menu_id, data_scope_type) VALUES(7, 10303, 0);"]
[7,{"$f":"菜单!A84","v":10304},{"$f":"菜单!E84","v":"评估监测/学生信息上报/修改"},"INSERT INTO sys_role_menu(sys_role_id, sys_menu_id, data_scope_type) VALUES(7, 10304, 0);"]
[7,{"$f":"菜单!A85","v":10305},{"$f":"菜单!E85","v":"评估监测/学生信息上报/删除"},"INSERT INTO sys_role_menu(sys_role_id, sys_menu_id, data_scope_type) VALUES(7, 10305, 0);"]
[7,{"$f":"菜单!A86","v":10306},{"$f":"菜单!E86","v":"评估监测/学生信息上报/提交"},"INSERT INTO sys_role_menu(sys_role_id, sys_menu_id, data_scope_type) VALUES(7, 10306, 0);"]
[7,{"$f":"菜单!A87","v":10307},{"$f":"菜单!E87","v":"评估监测/学生信息上报/审核"},"INSERT INTO sys_role_menu(sys_role_id, sys_menu_id, data_scope_type) VALUES(7, 10307, 0);"]
[7,{"$f":"菜单!A88","v":10308},{"$f":"菜单!E88","v":"评估监测/学生信息上报/下载"},"INSERT INTO sys_role_menu(sys_role_id, sys_menu_id, data_scope_type) VALUES(7, 10308, 0);"]
[7,{"$f":"菜单!A89","v":10309},{"$f":"菜单!E89","v":"评估监测/特殊学生上报"},"INSERT INTO sys_role_menu(sys_role_id, sys_menu_id, data_scope_type) VALUES(7, 10309, 0);"]
[7,{"$f":"菜单!A90","v":10310},{"$f":"菜单!E90","v":"评估监测/特殊学生上报/添加"},"INSERT INTO sys_role_menu(sys_role_id, sys_menu_id, data_scope_type) VALUES(7, 10310, 0);"]
[7,{"$f":"菜单!A91","v":10311},{"$f":"菜单!E91","v":"评估监测/特殊学生上报/修改"},"INSERT INTO sys_role_menu(sys_role_id, sys_menu_id, data_scope_type) VALUES(7, 10311, 0);"]
[7,{"$f":"菜单!A92","v":10312},{"$f":"菜单!E92","v":"评估监测/特殊学生上报/删除"},"INSERT INTO sys_role_menu(sys_role_id, sys_menu_id, data_scope_type) VALUES(7, 10312, 0);"]
[7,{"$f":"菜单!A93","v":10313},{"$f":"菜单!E93","v":"评估监测/特殊学生上报/提交"},"INSERT INTO sys_role_menu(sys_role_id, sys_menu_id, data_scope_type) VALUES(7, 10313, 0);"]
[7,{"$f":"菜单!A94","v":10314},{"$f":"菜单!E94","v":"评估监测/特殊学生上报/审核"},"INSERT INTO sys_role_menu(sys_role_id, sys_menu_id, data_scope_type) VALUES(7, 10314, 0);"]
[7,{"$f":"菜单!A95","v":10315},{"$f":"菜单!E95","v":"评估监测/特殊学生上报/下载"},"INSERT INTO sys_role_menu(sys_role_id, sys_menu_id, data_scope_type) VALUES(7, 10315, 0);"]
[7,{"$f":"菜单!A96","v":10316},{"$f":"菜单!E96","v":"评估监测/教师信息上报"},"INSERT INTO sys_role_menu(sys_role_id, sys_menu_id, data_scope_type) VALUES(7, 10316, 0);"]
[7,{"$f":"菜单!A97","v":10317},{"$f":"菜单!E97","v":"评估监测/教师信息上报/添加"},"INSERT INTO sys_role_menu(sys_role_id, sys_menu_id, data_scope_type) VALUES(7, 10317, 0);"]
[7,{"$f":"菜单!A98","v":10318},{"$f":"菜单!E98","v":"评估监测/教师信息上报/修改"},"INSERT INTO sys_role_menu(sys_role_id, sys_menu_id, data_scope_type) VALUES(7, 10318, 0);"]
[7,{"$f":"菜单!A99","v":10319},{"$f":"菜单!E99","v":"评估监测/教师信息上报/删除"},"INSERT INTO sys_role_menu(sys_role_id, sys_menu_id, data_scope_type) VALUES(7, 10319, 0);"]
[7,{"$f":"菜单!A100","v":10320},{"$f":"菜单!E100","v":"评估监测/教师信息上报/提交"},"INSERT INTO sys_role_menu(sys_role_id, sys_menu_id, data_scope_type) VALUES(7, 10320, 0);"]
[7,{"$f":"菜单!A101","v":10321},{"$f":"菜单!E101","v":"评估监测/教师信息上报/审核"},"INSERT INTO sys_role_menu(sys_role_id, sys_menu_id, data_scope_type) VALUES(7, 10321, 0);"]
[7,{"$f":"菜单!A102","v":10322},{"$f":"菜单!E102","v":"评估监测/教师信息上报/下载"},"INSERT INTO sys_role_menu(sys_role_id, sys_menu_id, data_scope_type) VALUES(7, 10322, 0);"]
[7,{"$f":"菜单!A103","v":10323},{"$f":"菜单!E103","v":"评估监测/教师学科上报"},"INSERT INTO sys_role_menu(sys_role_id, sys_menu_id, data_scope_type) VALUES(7, 10323, 0);"]
[7,{"$f":"菜单!A104","v":10324},{"$f":"菜单!E104","v":"评估监测/教师学科上报/添加"},"INSERT INTO sys_role_menu(sys_role_id, sys_menu_id, data_scope_type) VALUES(7, 10324, 0);"]
[7,{"$f":"菜单!A105","v":10325},{"$f":"菜单!E105","v":"评估监测/教师学科上报/修改"},"INSERT INTO sys_role_menu(sys_role_id, sys_menu_id, data_scope_type) VALUES(7, 10325, 0);"]
[7,{"$f":"菜单!A106","v":10326},{"$f":"菜单!E106","v":"评估监测/教师学科上报/删除"},"INSERT INTO sys_role_menu(sys_role_id, sys_menu_id, data_scope_type) VALUES(7, 10326, 0);"]
[7,{"$f":"菜单!A107","v":10327},{"$f":"菜单!E107","v":"评估监测/教师学科上报/提交"},"INSERT INTO sys_role_menu(sys_role_id, sys_menu_id, data_scope_type) VALUES(7, 10327, 0);"]
[7,{"$f":"菜单!A108","v":10328},{"$f":"菜单!E108","v":"评估监测/教师学科上报/审核"},"INSERT INTO sys_role_menu(sys_role_id, sys_menu_id, data_scope_type) VALUES(7, 10328, 0);"]
[7,{"$f":"菜单!A109","v":10329},{"$f":"菜单!E109","v":"评估监测/教师学科上报/下载"},"INSERT INTO sys_role_menu(sys_role_id, sys_menu_id, data_scope_type) VALUES(7, 10329, 0);"]
[7,{"$f":"菜单!A110","v":10330},{"$f":"菜单!E110","v":"评估监测/监测抽样下载"},"INSERT INTO sys_role_menu(sys_role_id, sys_menu_id, data_scope_type) VALUES(7, 10330, 0);"]
[7,{"$f":"菜单!A111","v":10331},{"$f":"菜单!E111","v":"评估监测/监测抽样下载/下载"},"INSERT INTO sys_role_menu(sys_role_id, sys_menu_id, data_scope_type) VALUES(7, 10331, 0);"]
[7,{"$f":"菜单!A112","v":10332},{"$f":"菜单!E112","v":"评估监测/缺测替补上报"},"INSERT INTO sys_role_menu(sys_role_id, sys_menu_id, data_scope_type) VALUES(7, 10332, 0);"]
[7,{"$f":"菜单!A113","v":10333},{"$f":"菜单!E113","v":"评估监测/缺测替补上报/添加"},"INSERT INTO sys_role_menu(sys_role_id, sys_menu_id, data_scope_type) VALUES(7, 10333, 0);"]
[7,{"$f":"菜单!A114","v":10334},{"$f":"菜单!E114","v":"评估监测/缺测替补上报/修改"},"INSERT INTO sys_role_menu(sys_role_id, sys_menu_id, data_scope_type) VALUES(7, 10334, 0);"]
[7,{"$f":"菜单!A115","v":10335},{"$f":"菜单!E115","v":"评估监测/缺测替补上报/删除"},"INSERT INTO sys_role_menu(sys_role_id, sys_menu_id, data_scope_type) VALUES(7, 10335, 0);"]
[7,{"$f":"菜单!A116","v":10336},{"$f":"菜单!E116","v":"评估监测/缺测替补上报/提交"},"INSERT INTO sys_role_menu(sys_role_id, sys_menu_id, data_scope_type) VALUES(7, 10336, 0);"]
[7,{"$f":"菜单!A117","v":10337},{"$f":"菜单!E117","v":"评估监测/缺测替补上报/审核"},"INSERT INTO sys_role_menu(sys_role_id, sys_menu_id, data_scope_type) VALUES(7, 10337, 0);"]
[7,{"$f":"菜单!A118","v":10338},{"$f":"菜单!E118","v":"评估监测/缺测替补上报/下载"},"INSERT INTO sys_role_menu(sys_role_id, sys_menu_id, data_scope_type) VALUES(7, 10338, 0);"]
[7,{"$f":"菜单!A119","v":10339},{"$f":"菜单!E119","v":"评估监测/校测数据上报"},"INSERT INTO sys_role_menu(sys_role_id, sys_menu_id, data_scope_type) VALUES(7, 10339, 0);"]
[7,{"$f":"菜单!A120","v":10340},{"$f":"菜单!E120","v":"评估监测/校测数据上报/添加"},"INSERT INTO sys_role_menu(sys_role_id, sys_menu_id, data_scope_type) VALUES(7, 10340, 0);"]
[7,{"$f":"菜单!A121","v":10341},{"$f":"菜单!E121","v":"评估监测/校测数据上报/修改"},"INSERT INTO sys_role_menu(sys_role_id, sys_menu_id, data_scope_type) VALUES(7, 10341, 0);"]
[7,{"$f":"菜单!A122","v":10342},{"$f":"菜单!E122","v":"评估监测/校测数据上报/删除"},"INSERT INTO sys_role_menu(sys_role_id, sys_menu_id, data_scope_type) VALUES(7, 10342, 0);"]
[7,{"$f":"菜单!A123","v":10343},{"$f":"菜单!E123","v":"评估监测/校测数据上报/提交"},"INSERT INTO sys_role_menu(sys_role_id, sys_menu_id, data_scope_type) VALUES(7, 10343, 0);"]
[7,{"$f":"菜单!A124","v":10344},{"$f":"菜单!E124","v":"评估监测/校测数据上报/审核"},"INSERT INTO sys_role_menu(sys_role_id, sys_menu_id, data_scope_type) VALUES(7, 10344, 0);"]
[7,{"$f":"菜单!A125","v":10345},{"$f":"菜单!E125","v":"评估监测/校测数据上报/下载"},"INSERT INTO sys_role_menu(sys_role_id, sys_menu_id, data_scope_type) VALUES(7, 10345, 0);"]

{"sheet":"审核角色","index":3,"n_rows":56,"n_cols":4,"rows_kept":56,"cut":false,"hidden":false,"merged":[]}
["sys_role_id","sys_menu_id","sys_menu_name"]
[null,null,null,"/* 小学特殊学生审核角色菜单权限 */"]
[3,{"$f":"菜单!A2","v":10000},{"$f":"菜单!E2","v":"工作台"},{"$f":"\"INSERT INTO sys_role_menu(sys_role_id, sys_menu_id, data_scope_type) VALUES(\"&A3&\", \"&B3&\", 0);\"","v":"INSERT INTO sys_role_menu(sys_role_id, sys_menu_id, data_scope_type) VALUES(3, 10000, 0);"}]
[3,{"$f":"菜单!A22","v":10200},{"$f":"菜单!E22","v":"监测管理"},"INSERT INTO sys_role_menu(sys_role_id, sys_menu_id, data_scope_type) VALUES(3, 10200, 0);"]
[3,{"$f":"菜单!A39","v":10217},{"$f":"菜单!E39","v":"监测管理/特殊学生管理"},"INSERT INTO sys_role_menu(sys_role_id, sys_menu_id, data_scope_type) VALUES(3, 10217, 0);"]
[3,{"$f":"菜单!A40","v":10218},{"$f":"菜单!E40","v":"监测管理/特殊学生管理/添加"},"INSERT INTO sys_role_menu(sys_role_id, sys_menu_id, data_scope_type) VALUES(3, 10218, 0);"]
[3,{"$f":"菜单!A41","v":10219},{"$f":"菜单!E41","v":"监测管理/特殊学生管理/修改"},"INSERT INTO sys_role_menu(sys_role_id, sys_menu_id, data_scope_type) VALUES(3, 10219, 0);"]
[3,{"$f":"菜单!A42","v":10220},{"$f":"菜单!E42","v":"监测管理/特殊学生管理/删除"},"INSERT INTO sys_role_menu(sys_role_id, sys_menu_id, data_scope_type) VALUES(3, 10220, 0);"]
[3,{"$f":"菜单!A43","v":10221},{"$f":"菜单!E43","v":"监测管理/特殊学生管理/提交"},{"$f":"\"INSERT INTO sys_role_menu(sys_role_id, sys_menu_id, data_scope_type) VALUES(\"&A9&\", \"&B9&\", 0);\"","v":"INSERT INTO sys_role_menu(sys_role_id, sys_menu_id, data_scope_type) VALUES(3, 10221, 0);"}]
[3,{"$f":"菜单!A44","v":10222},{"$f":"菜单!E44","v":"监测管理/特殊学生管理/审核"},"INSERT INTO sys_role_menu(sys_role_id, sys_menu_id, data_scope_type) VALUES(3, 10222, 0);"]
[3,{"$f":"菜单!A45","v":10223},{"$f":"菜单!E45","v":"监测管理/特殊学生管理/下载"},"INSERT INTO sys_role_menu(sys_role_id, sys_menu_id, data_scope_type) VALUES(3, 10223, 0);"]
[3,{"$f":"菜单!A69","v":10247},{"$f":"菜单!E69","v":"监测管理/特殊学生审核"},"INSERT INTO sys_role_menu(sys_role_id, sys_menu_id, data_scope_type) VALUES(3, 10247, 0);"]
[3,{"$f":"菜单!A70","v":10248},{"$f":"菜单!E70","v":"监测管理/特殊学生审核/添加"},{"$f":"\"INSERT INTO sys_role_menu(sys_role_id, sys_menu_id, data_scope_type) VALUES(\"&A13&\", \"&B13&\", 0);\"","v":"INSERT INTO sys_role_menu(sys_role_id, sys_menu_id, data_scope_type) VALUES(3, 10248, 0);"}]
[3,{"$f":"菜单!A71","v":10249},{"$f":"菜单!E71","v":"监测管理/特殊学生审核/修改"},{"$f":"\"INSERT INTO sys_role_menu(sys_role_id, sys_menu_id, data_scope_type) VALUES(\"&A14&\", \"&B14&\", 0);\"","v":"INSERT INTO sys_role_menu(sys_role_id, sys_menu_id, data_scope_type) VALUES(3, 10249, 0);"}]
[3,{"$f":"菜单!A72","v":10250},{"$f":"菜单!E72","v":"监测管理/特殊学生审核/删除"},{"$f":"\"INSERT INTO sys_role_menu(sys_role_id, sys_menu_id, data_scope_type) VALUES(\"&A15&\", \"&B15&\", 0);\"","v":"INSERT INTO sys_role_menu(sys_role_id, sys_menu_id, data_scope_type) VALUES(3, 10250, 0);"}]
[3,{"$f":"菜单!A73","v":10251},{"$f":"菜单!E73","v":"监测管理/特殊学生审核/提交"},{"$f":"\"INSERT INTO sys_role_menu(sys_role_id, sys_menu_id, data_scope_type) VALUES(\"&A16&\", \"&B16&\", 0);\"","v":"INSERT INTO sys_role_menu(sys_role_id, sys_menu_id, data_scope_type) VALUES(3, 10251, 0);"}]
[3,{"$f":"菜单!A74","v":10252},{"$f":"菜单!E74","v":"监测管理/特殊学生审核/审核"},{"$f":"\"INSERT INTO sys_role_menu(sys_role_id, sys_menu_id, data_scope_type) VALUES(\"&A17&\", \"&B17&\", 0);\"","v":"INSERT INTO sys_role_menu(sys_role_id, sys_menu_id, data_scope_type) VALUES(3, 10252, 0);"}]
[3,{"$f":"菜单!A75","v":10253},{"$f":"菜单!E75","v":"监测管理/特殊学生审核/下载"},{"$f":"\"INSERT INTO sys_role_menu(sys_role_id, sys_menu_id, data_scope_type) VALUES(\"&A18&\", \"&B18&\", 0);\"","v":"INSERT INTO sys_role_menu(sys_role_id, sys_menu_id, data_scope_type) VALUES(3, 10253, 0);"}]
[null,null,null,"/* 小学缺测替补审核角色菜单权限 */"]
[4,{"$f":"菜单!A2","v":10000},{"$f":"菜单!E2","v":"工作台"},{"$f":"\"INSERT INTO sys_role_menu(sys_role_id, sys_menu_id, data_scope_type) VALUES(\"&A20&\", \"&B20&\", 0);\"","v":"INSERT INTO sys_role_menu(sys_role_id, sys_menu_id, data_scope_type) VALUES(4, 10000, 0);"}]
[4,{"$f":"菜单!A22","v":10200},{"$f":"菜单!E22","v":"监测管理"},{"$f":"\"INSERT INTO sys_role_menu(sys_role_id, sys_menu_id, data_scope_type) VALUES(\"&A21&\", \"&B21&\", 0);\"","v":"INSERT INTO sys_role_menu(sys_role_id, sys_menu_id, data_scope_type) VALUES(4, 10200, 0);"}]
[4,{"$f":"菜单!A56","v":10234},{"$f":"菜单!E56","v":"监测管理/缺测替补管理"},{"$f":"\"INSERT INTO sys_role_menu(sys_role_id, sys_menu_id, data_scope_type) VALUES(\"&A22&\", \"&B22&\", 0);\"","v":"INSERT INTO sys_role_menu(sys_role_id, sys_menu_id, data_scope_type) VALUES(4, 10234, 0);"}]
[4,{"$f":"菜单!A57","v":10235},{"$f":"菜单!E57","v":"监测管理/缺测替补管理/添加"},{"$f":"\"INSERT INTO sys_role_menu(sys_role_id, sys_menu_id, data_scope_type) VALUES(\"&A23&\", \"&B23&\", 0);\"","v":"INSERT INTO sys_role_menu(sys_role_id, sys_menu_id, data_scope_type) VALUES(4, 10235, 0);"}]
[4,{"$f":"菜单!A58","v":10236},{"$f":"菜单!E58","v":"监测管理/缺测替补管理/修改"},"INSERT INTO sys_role_menu(sys_role_id, sys_menu_id, data_scope_type) VALUES(4, 10236, 0);"]
[4,{"$f":"菜单!A59","v":10237},{"$f":"菜单!E59","v":"监测管理/缺测替补管理/删除"},"INSERT INTO sys_role_menu(sys_role_id, sys_menu_id, data_scope_type) VALUES(4, 10237, 0);"]
[4,{"$f":"菜单!A60","v":10238},{"$f":"菜单!E60","v":"监测管理/缺测替补管理/提交"},"INSERT INTO sys_role_menu(sys_role_id, sys_menu_id, data_scope_type) VALUES(4, 10238, 0);"]
[4,{"$f":"菜单!A61","v":10239},{"$f":"菜单!E61","v":"监测管理/缺测替补管理/审核"},"INSERT INTO sys_role_menu(sys_role_id, sys_menu_id, data_scope_type) VALUES(4, 10239, 0);"]
[4,{"$f":"菜单!A62","v":10240},{"$f":"菜单!E62","v":"监测管理/缺测替补管理/下载"},"INSERT INTO sys_role_menu(sys_role_id, sys_menu_id, data_scope_type) VALUES(4, 10240, 0);"]
[]
[null,null,null,"/* 初中特殊学生审核角色菜单权限 */"]
[9,{"$f":"菜单!A2","v":10000},{"$f":"菜单!E2","v":"工作台"},{"$f":"\"INSERT INTO sys_role_menu(sys_role_id, sys_menu_id, data_scope_type) VALUES(\"&A31&\", \"&B31&\", 0);\"","v":"INSERT INTO sys_role_menu(sys_role_id, sys_menu_id, data_scope_type) VALUES(9, 10000, 0);"}]
[9,{"$f":"菜单!A22","v":10200},{"$f":"菜单!E22","v":"监测管理"},"INSERT INTO sys_role_menu(sys_role_id, sys_menu_id, data_scope_type) VALUES(9, 10200, 0);"]
[9,{"$f":"菜单!A39","v":10217},{"$f":"菜单!E39","v":"监测管理/特殊学生管理"},"INSERT INTO sys_role_menu(sys_role_id, sys_menu_id, data_scope_type) VALUES(9, 10217, 0);"]
[9,{"$f":"菜单!A40","v":10218},{"$f":"菜单!E40","v":"监测管理/特殊学生管理/添加"},"INSERT INTO sys_role_menu(sys_role_id, sys_menu_id, data_scope_type) VALUES(9, 10218, 0);"]
[9,{"$f":"菜单!A41","v":10219},{"$f":"菜单!E41","v":"监测管理/特殊学生管理/修改"},"INSERT INTO sys_role_menu(sys_role_id, sys_menu_id, data_scope_type) VALUES(9, 10219, 0);"]
[9,{"$f":"菜单!A42","v":10220},{"$f":"菜单!E42","v":"监测管理/特殊学生管理/删除"},"INSERT INTO sys_role_menu(sys_role_id, sys_menu_id, data_scope_type) VALUES(9, 10220, 0);"]
[9,{"$f":"菜单!A43","v":10221},{"$f":"菜单!E43","v":"监测管理/特殊学生管理/提交"},"INSERT INTO sys_role_menu(sys_role_id, sys_menu_id, data_scope_type) VALUES(9, 10221, 0);"]
[9,{"$f":"菜单!A44","v":10222},{"$f":"菜单!E44","v":"监测管理/特殊学生管理/审核"},"INSERT INTO sys_role_menu(sys_role_id, sys_menu_id, data_scope_type) VALUES(9, 10222, 0);"]
[9,{"$f":"菜单!A45","v":10223},{"$f":"菜单!E45","v":"监测管理/特殊学生管理/下载"},"INSERT INTO sys_role_menu(sys_role_id, sys_menu_id, data_scope_type) VALUES(9, 10223, 0);"]
[9,{"$f":"菜单!A69","v":10247},{"$f":"菜单!E69","v":"监测管理/特殊学生审核"},"INSERT INTO sys_role_menu(sys_role_id, sys_menu_id, data_scope_type) VALUES(9, 10247, 0);"]
[9,{"$f":"菜单!A70","v":10248},{"$f":"菜单!E70","v":"监测管理/特殊学生审核/添加"},{"$f":"\"INSERT INTO sys_role_menu(sys_role_id, sys_menu_id, data_scope_type) VALUES(\"&A41&\", \"&B41&\", 0);\"","v":"INSERT INTO sys_role_menu(sys_role_id, sys_menu_id, data_scope_type) VALUES(9, 10248, 0);"}]
[9,{"$f":"菜单!A71","v":10249},{"$f":"菜单!E71","v":"监测管理/特殊学生审核/修改"},"INSERT INTO sys_role_menu(sys_role_id, sys_menu_id, data_scope_type) VALUES(9, 10249, 0);"]
[9,{"$f":"菜单!A72","v":10250},{"$f":"菜单!E72","v":"监测管理/特殊学生审核/删除"},"INSERT INTO sys_role_menu(sys_role_id, sys_menu_id, data_scope_type) VALUES(9, 10250, 0);"]
[9,{"$f":"菜单!A73","v":10251},{"$f":"菜单!E73","v":"监测管理/特殊学生审核/提交"},"INSERT INTO sys_role_menu(sys_role_id, sys_menu_id, data_scope_type) VALUES(9, 10251, 0);"]
[9,{"$f":"菜单!A74","v":10252},{"$f":"菜单!E74","v":"监测管理/特殊学生审核/审核"},"INSERT INTO sys_role_menu(sys_role_id, sys_menu_id, data_scope_type) VALUES(9, 10252, 0);"]
[9,{"$f":"菜单!A75","v":10253},{"$f":"菜单!E75","v":"监测管理/特殊学生审核/下载"},"INSERT INTO sys_role_menu(sys_role_id, sys_menu_id, data_scope_type) VALUES(9, 10253, 0);"]
[null,null,null,"/* 初中缺测替补审核角色菜单权限 */"]
[10,{"$f":"菜单!A2","v":10000},{"$f":"菜单!E2","v":"工作台"},{"$f":"\"INSERT INTO sys_role_menu(sys_role_id, sys_menu_id, data_scope_type) VALUES(\"&A48&\", \"&B48&\", 0);\"","v":"INSERT INTO sys_role_menu(sys_role_id, sys_menu_id, data_scope_type) VALUES(10, 10000, 0);"}]
[10,{"$f":"菜单!A22","v":10200},{"$f":"菜单!E22","v":"监测管理"},"INSERT INTO sys_role_menu(sys_role_id, sys_menu_id, data_scope_type) VALUES(10, 10200, 0);"]
[10,{"$f":"菜单!A39","v":10217},{"$f":"菜单!E39","v":"监测管理/特殊学生管理"},"INSERT INTO sys_role_menu(sys_role_id, sys_menu_id, data_scope_type) VALUES(10, 10217, 0);"]
[10,{"$f":"菜单!A40","v":10218},{"$f":"菜单!E40","v":"监测管理/特殊学生管理/添加"},"INSERT INTO sys_role_menu(sys_role_id, sys_menu_id, data_scope_type) VALUES(10, 10218, 0);"]
[10,{"$f":"菜单!A41","v":10219},{"$f":"菜单!E41","v":"监测管理/特殊学生管理/修改"},"INSERT INTO sys_role_menu(sys_role_id, sys_menu_id, data_scope_type) VALUES(10, 10219, 0);"]
[10,{"$f":"菜单!A42","v":10220},{"$f":"菜单!E42","v":"监测管理/特殊学生管理/删除"},"INSERT INTO sys_role_menu(sys_role_id, sys_menu_id, data_scope_type) VALUES(10, 10220, 0);"]
[10,{"$f":"菜单!A43","v":10221},{"$f":"菜单!E43","v":"监测管理/特殊学生管理/提交"},"INSERT INTO sys_role_menu(sys_role_id, sys_menu_id, data_scope_type) VALUES(10, 10221, 0);"]
[10,{"$f":"菜单!A44","v":10222},{"$f":"菜单!E44","v":"监测管理/特殊学生管理/审核"},"INSERT INTO sys_role_menu(sys_role_id, sys_menu_id, data_scope_type) VALUES(10, 10222, 0);"]
[10,{"$f":"菜单!A45","v":10223},{"$f":"菜单!E45","v":"监测管理/特殊学生管理/下载"},"INSERT INTO sys_role_menu(sys_role_id, sys_menu_id, data_scope_type) VALUES(10, 10223, 0);"]